{"text_format":"3","workbook":"xlsx","n_sheets":8,"sheets":["оглавление","1-й год","2-й год","3-й год","4-й год","2 группа май","8 группа май","7-й год"],"not_rendered":{"defined_names":7},"read":"whole","date_system":"1900"}

{"sheet":"оглавление","index":0,"n_rows":14,"n_cols":3,"rows_kept":14}
[]
[null,null,"Карта наблюдений за детьми 1-го года жизни"]
[]
[null,null,"Карта наблюдений за детьми 2-го года жизни"]
[]
[null,null,"Карта наблюдений за детьми 3-го года жизни"]
[]
[null,null,"Карта наблюдений за детьми 4-го года жизни"]
[]
[null,null,"Карта наблюдений за детьми 5-го года жизни"]
[]
[null,null,"Карта наблюдений за детьми 6-го года жизни"]
[]
[null,null,"Карта наблюдений за детьми 7-го года жизни"]

{"sheet":"1-й год","index":1,"n_rows":38,"n_cols":36,"rows_kept":38,"merged":[[0,0,0,35],[1,0,2,2],[1,33,2,33],[1,34,2,34],[1,35,2,35],[3,0,10,1],[3,33,10,33],[3,34,10,34],[3,35,10,35],[11,0,18,1],[11,33,18,33],[11,34,18,34],[11,35,18,35],[19,0,26,1],[19,33,26,33],[19,34,26,34],[19,35,26,35],[27,0,30,1],[27,33,30,33],[27,34,30,34],[27,35,30,35],[31,0,35,1],[31,33,35,33],[31,34,35,34],[31,35,35,35],[36,0,36,2],[36,34,37,34],[36,35,37,35],[37,0,37,2]]}
["Карта наблюдений за детьми 1-го года жизни"]
["          Фамилии, \n               имена \n                   детей \n               группы\n\n\n\nОбразова-                   тельные \nобласти:",{"$nulls":32},"среднее","Оценка адекватности форм и методов образовательной работы (значение)","Оценка адекватности форм и методов образовательной работы (интерпретация)"]
[{"$nulls":3},1,2,3,4,5,6,7,8,9,10,11,12,13,14,15,16,17,18,19,20,21,22,23,24,25,26,27,28,29,30]
["Социально-коммуника-тивное развитие",null,1,{"$nulls":30},{"$f":"SUM(D4:AG11)/COUNTA(D2:AG2)/8","v":{"$error":"#DIV/0!"}},{"$f":"AH4*50","v":{"$error":"#DIV/0!"}},{"$f":"IF(AI4>95,\"требуется пересмотр образовательных задач на предмет соответствия возможностям детей\",IF(OR(AI4=75,AND(AI4>75,AI4<95)),\"условия соответствуют образовательным задачам\",IF(OR(AI4=50,AND(AI4<75,AI4>50)),\"требуется оптимизация условий, созданных в ДОО\",\"требуется коррекция условий, созданных в ДОО\")))","v":{"$error":"#DIV/0!"}}]
[null,null,{"$f":"C4+1","v":2}]
[null,null,3]
[null,null,4]
[null,null,5]
[null,null,6]
[null,null,7]
[null,null,8]
["Познава-тельное развитие",null,9,{"$nulls":30},{"$f":"SUM(D12:AG19)/COUNTA(D2:AG2)/8","v":{"$error":"#DIV/0!"}},{"$f":"AH12*50","v":{"$error":"#DIV/0!"}},{"$f":"IF(AI12>95,\"требуется пересмотр образовательных задач на предмет соответствия возможностям детей\",IF(OR(AI12=75,AND(AI12>75,AI12<95)),\"условия соответствуют образовательным задачам\",IF(OR(AI12=50,AND(AI12<75,AI12>50)),\"требуется оптимизация условий, созданных в ДОО\",\"требуется коррекция условий, созданных в ДОО\")))","v":{"$error":"#DIV/0!"}}]
[null,null,10]
[null,null,11]
[null,null,12]
[null,null,13,{"$f":"D7","v":0},0,0,0,0,0,0,0,0,0,0,0,0,0,0,0,0,0,0,0,0,0,0,{"$f":"AA7","v":0},0,0,0,0,0,0]
[null,null,14]
[null,null,15]
[null,null,16]
["Речевое развитие",null,17,{"$f":"D6","v":0},{"$f":"E6","v":0},0,0,0,0,0,0,0,0,0,0,0,0,0,0,0,0,0,0,0,0,0,0,0,0,0,0,0,0,{"$f":"SUM(D20:AG27)/COUNTA(D2:AG2)/8","v":{"$error":"#DIV/0!"}},{"$f":"AH20*50","v":{"$error":"#DIV/0!"}},{"$f":"IF(AI20>95,\"требуется пересмотр образовательных задач на предмет соответствия возможностям детей\",IF(OR(AI20=75,AND(AI20>75,AI20<95)),\"условия соответствуют образовательным задачам\",IF(OR(AI20=50,AND(AI20<75,AI20>50)),\"требуется оптимизация условий, созданных в ДОО\",\"требуется коррекция условий, созданных в ДОО\")))","v":{"$error":"#DIV/0!"}}]
[null,null,18]
[null,null,19,{"$f":"D7","v":0},{"$f":"E7","v":0},0,0,0,0,0,0,0,0,0,0,0,0,0,0,0,0,0,0,0,0,0,0,0,0,0,0,0,0]
[null,null,20]
[null,null,21,{"$f":"D18","v":0},{"$f":"E18","v":0},0,0,0,0,0,0,0,0,0,0,0,0,0,0,0,0,0,0,0,0,0,0,0,0,0,0,0,0]
[null,null,22,{"$f":"D19","v":0},{"$f":"E19","v":0},0,0,0,0,0,0,0,0,0,0,0,0,0,0,0,0,0,0,0,0,0,0,0,0,0,0,0,0]
[null,null,23]
[null,null,24,{"$f":"D11","v":0},{"$f":"E11","v":0},0,0,0,0,0,0,0,0,0,0,0,0,0,0,0,0,0,0,0,0,0,0,0,0,0,0,0,0]
["Художест-венно-эстетичес-кое развитие",null,25,{"$nulls":30},{"$f":"SUM(D28:AG31)/COUNTA(D2:AG2)/4","v":{"$error":"#DIV/0!"}},{"$f":"AH28*50","v":{"$error":"#DIV/0!"}},{"$f":"IF(AI28>95,\"требуется пересмотр образовательных задач на предмет соответствия возможностям детей\",IF(OR(AI28=75,AND(AI28>75,AI28<95)),\"условия соответствуют образовательным задачам\",IF(OR(AI28=50,AND(AI28<75,AI28>50)),\"требуется оптимизация условий, созданных в ДОО\",\"требуется коррекция условий, созданных в ДОО\")))","v":{"$error":"#DIV/0!"}}]
[null,null,26]
[null,null,27]
[null,null,28]
["Физическое развитие",null,29,{"$nulls":30},{"$f":"SUM(D32:AG36)/COUNTA(D2:AG2)/5","v":{"$error":"#DIV/0!"}},{"$f":"AH32*50","v":{"$error":"#DIV/0!"}},{"$f":"IF(AI32>95,\"требуется пересмотр образовательных задач на предмет соответствия возможностям детей\",IF(OR(AI32=75,AND(AI32>75,AI32<95)),\"условия соответствуют образовательным задачам\",IF(OR(AI32=50,AND(AI32<75,AI32>50)),\"требуется оптимизация условий, созданных в ДОО\",\"требуется коррекция условий, созданных в ДОО\")))","v":{"$error":"#DIV/0!"}}]
[null,null,30]
[null,null,31]
[null,null,32,{"$f":"D12","v":0},{"$f":"E12","v":0},0,0,0,0,0,0,0,0,0,0,0,0,0,0,0,0,0,0,0,0,0,0,0,0,0,0,0,0]
[null,null,33]
["Оценка успешности продвижения ребен-ка в образователь-ном пространстве (значение)",null,null,{"$f":"(SUM(D4:D15)+SUM(D17:D19)+D21+D23+D26+SUM(D28:D34)+D36)/26*50","v":{"v":0,"d":"0.00"}},{"$f":"(SUM(E4:E15)+SUM(E17:E19)+E21+E23+E26+SUM(E28:E34)+E36)/26*50","v":{"v":0,"d":"0.00"}},{"v":0,"d":"0.00"},{"v":0,"d":"0.00"},{"v":0,"d":"0.00"},{"v":0,"d":"0.00"},{"v":0,"d":"0.00"},{"v":0,"d":"0.00"},{"v":0,"d":"0.00"},{"v":0,"d":"0.00"},{"v":0,"d":"0.00"},{"v":0,"d":"0.00"},{"v":0,"d":"0.00"},{"v":0,"d":"0.00"},{"v":0,"d":"0.00"},{"v":0,"d":"0.00"},{"v":0,"d":"0.00"},{"v":0,"d":"0.00"},{"v":0,"d":"0.00"},{"v":0,"d":"0.00"},{"v":0,"d":"0.00"},{"v":0,"d":"0.00"},{"v":0,"d":"0.00"},{"v":0,"d":"0.00"},{"v":0,"d":"0.00"},{"v":0,"d":"0.00"},{"v":0,"d":"0.00"},{"v":0,"d":"0.00"},{"v":0,"d":"0.00"},{"v":0,"d":"0.00"},{"$f":"SUM(D4:AG36)/COUNTA(D2:AG2)/33","v":{"$error":"#DIV/0!"}},{"$f":"AH37*50","v":{"$error":"#DIV/0!"}},{"$f":"IF(AI37>95,\"требуется пересмотр образовательных задач на предмет соответствия возможностям детей\",IF(OR(AI37=75,AND(AI37>75,AI37<95)),\"условия соответствуют образовательным задачам\",IF(OR(AI37=50,AND(AI37<75,AI37>50)),\"требуется оптимизация условий, созданных в ДОО\",\"требуется коррекция условий, созданных в ДОО\")))","v":{"$error":"#DIV/0!"}}]
["Оценка успешности продвижения ребенка в образовательном пространстве (интерпретация)",null,null,{"$f":"IF(COUNTA(D2)=0,0,IF(D37>95,\"высокий темп развития\",IF(OR(D37=75,AND(D37>75,D37<95)),\"успешное развитие\",IF(OR(D37=50,AND(D37<75,D37>50)),\"норма развития\",IF(OR(D37=30,AND(D37<59,D37>30)),\"разраб.инд.образ.маршрута и/или психол.диагн.\",\"рекомендуется комплексное психол.обследование\")))))","v":0},0,0,0,0,0,0,0,0,0,0,0,0,0,0,0,0,0,0,0,0,0,0,0,0,{"$f":"IF(COUNTA(AC2)=0,0,IF(AC37>95,\"высокий темп развития\",IF(OR(AC37=75,AND(AC37>75,AC37<95)),\"успешное развитие\",IF(OR(AC37=50,AND(AC37<75,AC37>50)),\"норма развития\",IF(OR(AC37=30,AND(AC37<59,AC37>30)),\"разраб.инд.образ.маршрута и/или психол.диагн.\",\"рекомендуется комплексное психол.обследование\")))))","v":0},{"$f":"IF(COUNTA(AD2)=0,0,IF(AD37>95,\"высокий темп развития\",IF(OR(AD37=75,AND(AD37>75,AD37<95)),\"успешное развитие\",IF(OR(AD37=50,AND(AD37<75,AD37>50)),\"норма развития\",IF(OR(AD37=30,AND(AD37<59,AD37>30)),\"разраб.инд.образ.маршрута и/или психол.диагн.\",\"рекомендуется комплексное психол.обследование\")))))","v":0},0,0,0]

{"sheet":"2-й год","index":2,"n_rows":51,"n_cols":36,"rows_kept":51,"merged":[[0,0,0,35],[1,0,2,2],[1,35,2,35],[3,0,17,1],[3,35,17,35],[18,0,28,1],[18,35,28,35],[29,0,35,1],[29,35,35,35],[36,0,41,1],[36,35,41,35],[42,0,48,1],[42,35,48,35],[49,0,49,2],[49,35,50,35],[50,0,50,2]]}
["Карта наблюдений за детьми 2-го года жизни"]
["          Фамилии, \n               имена \n                   детей \n               группы\n\n\n\nОбразова-                   тельные \nобласти:",{"$nulls":32},"среднее","Оценка адекватности форм и методов образовательной работы (значение)","Оценка адекватности форм и методов образовательной работы"]
[{"$nulls":3},1,2,3,4,5,6,7,8,9,10,11,12,13,14,15,16,17,18,19,20,21,22,23,24,25,26,27,28,29,30]
["Социально-коммуника-тивное развитие",null,1,{"$nulls":30},{"$f":"SUM(D4:AG18)/COUNTA(D2:AG2)/15","v":{"$error":"#DIV/0!"}},{"$f":"AH4*50","v":{"$error":"#DIV/0!"}},{"$f":"IF(AI4>95,\"требуется пересмотр образовательных задач на предмет соответствия возможностям детей\",IF(OR(AI4=75,AND(AI4>75,AI4<95)),\"условия соответствуют образовательным задачам\",IF(OR(AI4=50,AND(AI4<75,AI4>50)),\"требуется оптимизация условий, созданных в ДОО\",\"требуется коррекция условий, созданных в ДОО\")))","v":{"$error":"#DIV/0!"}}]
[null,null,{"$f":"C4+1","v":2}]
[null,null,{"$f":"C5+1","v":3}]
[null,null,4]
[null,null,5]
[null,null,6]
[null,null,7]
[null,null,8]
[null,null,{"$f":"C11+1","v":9}]
[null,null,10]
[null,null,11]
[null,null,12]
[null,null,13]
[null,null,14]
[null,null,15]
["Познавательное развитие",null,16,{"$nulls":30},{"$f":"SUM(D19:AG29)/COUNTA(D2:AG2)/11","v":{"$error":"#DIV/0!"}},{"$f":"AH19*50","v":{"$error":"#DIV/0!"}},{"$f":"IF(AI19>95,\"требуется пересмотр образовательных задач на предмет соответствия возможностям детей\",IF(OR(AI19=75,AND(AI19>75,AI19<95)),\"условия соответствуют образовательным задачам\",IF(OR(AI19=50,AND(AI19<75,AI19>50)),\"требуется оптимизация условий, созданных в ДОО\",\"требуется коррекция условий, созданных в ДОО\")))","v":{"$error":"#DIV/0!"}}]
[null,null,17]
[null,null,18]
[null,null,19]
[null,null,20]
[null,null,21,{"$f":"D9","v":0},{"$f":"E9","v":0},0,0,0,0,0,0,0,0,0,0,0,0,0,0,0,0,0,0,0,0,0,0,0,0,0,0,0,0]
[null,null,22]
[null,null,23]
[null,null,24]
[null,null,25,{"$f":"D4","v":0},{"$f":"E4","v":0},0,0,0,0,0,0,0,0,0,0,0,0,0,0,0,0,0,0,0,0,0,0,0,0,0,0,0,0]
[null,null,26,{"$f":"D5","v":0},{"$f":"E5","v":0},0,0,0,0,0,0,0,0,0,0,0,0,0,0,0,0,0,0,0,0,0,0,0,0,0,0,0,0]
["Речевое развитие",null,27,{"$f":"D11","v":0},{"$f":"E11","v":0},0,0,0,0,0,0,0,0,0,0,0,0,0,0,0,0,0,0,0,0,0,0,0,0,0,0,0,0,{"$f":"SUM(D30:AG36)/COUNTA(D2:AG2)/7","v":{"$error":"#DIV/0!"}},{"$f":"AH30*50","v":{"$error":"#DIV/0!"}},{"$f":"IF(AI30>95,\"требуется пересмотр образовательных задач на предмет соответствия возможностям детей\",IF(OR(AI30=75,AND(AI30>75,AI30<95)),\"условия соответствуют образовательным задачам\",IF(OR(AI30=50,AND(AI30<75,AI30>50)),\"требуется оптимизация условий, созданных в ДОО\",\"требуется коррекция условий, созданных в ДОО\")))","v":{"$error":"#DIV/0!"}}]
[null,null,28]
[null,null,29]
[null,null,30,{"$f":"D16","v":0},{"$f":"E16","v":0},0,0,0,0,0,0,0,0,0,0,0,0,0,0,0,0,0,0,0,0,0,0,0,0,0,0,0,0]
[null,null,31,{"$f":"D17","v":0},{"$f":"E17","v":0},0,0,0,0,0,0,0,0,0,0,0,0,0,0,0,0,0,0,0,0,0,0,0,0,0,0,0,0]
[null,null,32,{"$f":"D9","v":0},{"$f":"E9","v":0},0,0,0,0,0,0,0,0,0,0,0,0,0,0,0,0,0,0,0,0,0,0,0,0,0,0,0,0]
[null,null,33,{"$f":"D26","v":0},{"$f":"E26","v":0},0,0,0,0,0,0,0,0,0,0,0,0,0,0,0,0,0,0,0,0,0,0,0,0,0,0,0,0]
["Художест-венно-эстетичес-кое развитие",null,34,{"$f":"D26","v":0},{"$f":"E26","v":0},0,0,0,0,0,0,0,0,0,0,0,0,0,0,0,0,0,0,0,0,0,0,0,0,0,0,0,0,{"$f":"SUM(D37:AG42)/COUNTA(D2:AG2)/6","v":{"$error":"#DIV/0!"}},{"$f":"AH37*50","v":{"$error":"#DIV/0!"}},{"$f":"IF(AI37>95,\"требуется пересмотр образовательных задач на предмет соответствия возможностям детей\",IF(OR(AI37=75,AND(AI37>75,AI37<95)),\"условия соответствуют образовательным задачам\",IF(OR(AI37=50,AND(AI37<75,AI37>50)),\"требуется оптимизация условий, созданных в ДОО\",\"требуется коррекция условий, созданных в ДОО\")))","v":{"$error":"#DIV/0!"}}]
[null,null,35,{"$f":"D25","v":0},{"$f":"E25","v":0},0,0,0,0,0,0,0,0,0,0,0,0,0,0,0,0,0,0,0,0,0,0,0,0,0,0,0,0]
[null,null,36]
[null,null,37]
[null,null,38]
[null,null,39]
["Физическое развитие",null,40,{"$nulls":30},{"$f":"SUM(D43:AG49)/COUNTA(D2:AG2)/7","v":{"$error":"#DIV/0!"}},{"$f":"AH43*50","v":{"$error":"#DIV/0!"}},{"$f":"IF(AI43>95,\"требуется пересмотр образовательных задач на предмет соответствия возможностям детей\",IF(OR(AI43=75,AND(AI43>75,AI43<95)),\"условия соответствуют образовательным задачам\",IF(OR(AI43=50,AND(AI43<75,AI43>50)),\"требуется оптимизация условий, созданных в ДОО\",\"требуется коррекция условий, созданных в ДОО\")))","v":{"$error":"#DIV/0!"}}]
[null,null,41]
[null,null,42,{"$f":"D19","v":0},{"$f":"E19","v":0},0,0,0,0,0,0,0,0,0,0,0,0,0,0,0,0,0,0,0,0,0,0,0,0,0,0,0,0]
[null,null,43]
[null,null,44]
[null,null,45]
[null,null,46,{"$f":"D23","v":0},{"$f":"E23","v":0},0,0,0,0,0,0,0,0,0,0,0,0,0,0,0,0,0,0,0,0,0,0,0,0,0,0,0,0]
["Оценка успешности продвижения ребен-ка в образователь-ном пространстве (значение)",null,null,{"$f":"(SUM(D4:D23)+SUM(D25:D27)+SUM(D31:D32)+SUM(D38:D44)+SUM(D46:D48))/34*50","v":{"v":0,"d":"0.00"}},{"$f":"(SUM(E4:E23)+SUM(E25:E27)+SUM(E31:E32)+SUM(E38:E44)+SUM(E46:E48))/34*50","v":{"v":0,"d":"0.00"}},{"v":0,"d":"0.00"},{"v":0,"d":"0.00"},{"v":0,"d":"0.00"},{"v":0,"d":"0.00"},{"v":0,"d":"0.00"},{"v":0,"d":"0.00"},{"v":0,"d":"0.00"},{"v":0,"d":"0.00"},{"v":0,"d":"0.00"},{"v":0,"d":"0.00"},{"v":0,"d":"0.00"},{"v":0,"d":"0.00"},{"v":0,"d":"0.00"},{"v":0,"d":"0.00"},{"v":0,"d":"0.00"},{"v":0,"d":"0.00"},{"v":0,"d":"0.00"},{"v":0,"d":"0.00"},{"v":0,"d":"0.00"},{"v":0,"d":"0.00"},{"v":0,"d":"0.00"},{"v":0,"d":"0.00"},{"v":0,"d":"0.00"},{"v":0,"d":"0.00"},{"v":0,"d":"0.00"},{"v":0,"d":"0.00"},{"v":0,"d":"0.00"},{"v":0,"d":"0.00"},{"$f":"SUM(D4:AG49)/COUNTA(D2:AG2)/46","v":{"$error":"#DIV/0!"}},{"$f":"AH50*50","v":{"$error":"#DIV/0!"}},{"$f":"IF(AI50>95,\"требуется пересмотр образовательных задач на предмет соответствия возможностям детей\",IF(OR(AI50=75,AND(AI50>75,AI50<95)),\"условия соответствуют образовательным задачам\",IF(OR(AI50=50,AND(AI50<75,AI50>50)),\"требуется оптимизация условий, созданных в ДОО\",\"требуется коррекция условий, созданных в ДОО\")))","v":{"$error":"#DIV/0!"}}]
["Оценка успешности продвижения ребенка в образовательном пространстве (интерпретация)",null,null,{"$f":"IF(COUNTA(D2)=0,0,IF(D50>95,\"высокий темп развития\",IF(OR(D50=75,AND(D50>75,D50<95)),\"успешное развитие\",IF(OR(D50=50,AND(D50<75,D50>50)),\"норма развития\",IF(OR(D50=30,AND(D50<59,D50>30)),\"разраб.инд.образ.маршрута и/или психол.диагн.\",\"рекомендуется комплексное психол.обследование\")))))","v":0},{"$f":"IF(COUNTA(E2)=0,0,IF(E50>95,\"высокий темп развития\",IF(OR(E50=75,AND(E50>75,E50<95)),\"успешное развитие\",IF(OR(E50=50,AND(E50<75,E50>50)),\"норма развития\",IF(OR(E50=30,AND(E50<59,E50>30)),\"разраб.инд.образ.маршрута и/или психол.диагн.\",\"рекомендуется комплексное психол.обследование\")))))","v":0},0,0,0,0,0,0,0,0,0,0,0,0,0,0,0,0,0,0,0,0,0,0,0,0,0,0,0,0]

{"sheet":"3-й год","index":3,"n_rows":56,"n_cols":36,"rows_kept":56,"merged":[[0,0,0,35],[1,0,2,2],[1,35,2,35],[3,0,17,1],[3,35,17,35],[18,0,29,1],[18,35,29,35],[30,0,35,1],[30,35,35,35],[36,0,43,1],[36,35,43,35],[44,0,53,1],[44,35,53,35],[54,0,54,2],[54,35,55,35],[55,0,55,2]]}
["Карта наблюдений за детьми 3-го года жизни"]
["          Фамилии, \n               имена \n                   детей \n               группы\n\n\n\nОбразова-                   тельные \nобласти:",{"$nulls":32},"среднее","Оценка адекватности форм и методов образовательной работы (значение)","Оценка адекватности форм и методов образовательной работы"]
[{"$nulls":3},1,2,3,4,5,6,7,8,9,10,11,12,13,14,15,16,17,18,19,20,21,22,23,24,25,26,27,28,29,30]
["Социально-коммуника-тивное развитие",null,1,{"$nulls":30},{"$f":"SUM(D4:AG18)/COUNTA(D2:AG2)/15","v":{"$error":"#DIV/0!"}},{"$f":"AH4*50","v":{"$error":"#DIV/0!"}},{"$f":"IF(AI4>95,\"требуется пересмотр образовательных задач на предмет соответствия возможностям детей\",IF(OR(AI4=75,AND(AI4>75,AI4<95)),\"условия соответствуют образовательным задачам\",IF(OR(AI4=50,AND(AI4<75,AI4>50)),\"требуется оптимизация условий, созданных в ДОО\",\"требуется коррекция условий, созданных в ДОО\")))","v":{"$error":"#DIV/0!"}}]
[null,null,{"$f":"C4+1","v":2}]
[null,null,{"$f":"C5+1","v":3}]
[null,null,4]
[null,null,5]
[null,null,6]
[null,null,7]
[null,null,8]
[null,null,9]
[null,null,10]
[null,null,11]
[null,null,12]
[null,null,13]
[null,null,14]
[null,null,15]
["Познава-тельное развитие",null,16,{"$nulls":30},{"$f":"SUM(D19:AG30)/COUNTA(D2:AG2)/12","v":{"$error":"#DIV/0!"}},{"$f":"AH19*50","v":{"$error":"#DIV/0!"}},{"$f":"IF(AI19>95,\"требуется пересмотр образовательных задач на предмет соответствия возможностям детей\",IF(OR(AI19=75,AND(AI19>75,AI19<95)),\"условия соответствуют образовательным задачам\",IF(OR(AI19=50,AND(AI19<75,AI19>50)),\"требуется оптимизация условий, созданных в ДОО\",\"требуется коррекция условий, созданных в ДОО\")))","v":{"$error":"#DIV/0!"}}]
[null,null,17]
[null,null,18]
[null,null,{"$f":"C21+1","v":19},{"$f":"D14","v":0},{"$f":"E14","v":0},0,0,0,0,0,0,0,0,0,0,0,0,0,0,0,0,0,0,0,0,0,0,0,0,0,0,0,0]
[null,null,{"$f":"C22+1","v":20},{"$f":"D6","v":0},{"$f":"E6","v":0},0,0,0,0,0,0,0,0,0,0,0,0,0,0,0,0,0,0,0,0,0,0,0,0,0,0,0,0]
[null,null,21,{"$f":"D7","v":0},{"$f":"E7","v":0},0,0,0,0,0,0,0,0,0,0,0,0,0,0,0,0,0,0,0,0,0,0,0,0,0,0,0,0]
[null,null,22]
[null,null,23]
[null,null,24]
[null,null,25]
[null,null,26]
[null,null,27]
["Речевое развитие",null,28,{"$nulls":30},{"$f":"SUM(D31:AG36)/COUNTA(D2:AG2)/6","v":{"$error":"#DIV/0!"}},{"$f":"AH31*50","v":{"$error":"#DIV/0!"}},{"$f":"IF(AI31>95,\"требуется пересмотр образовательных задач на предмет соответствия возможностям детей\",IF(OR(AI31=75,AND(AI31>75,AI31<95)),\"условия соответствуют образовательным задачам\",IF(OR(AI31=50,AND(AI31<75,AI31>50)),\"требуется оптимизация условий, созданных в ДОО\",\"требуется коррекция условий, созданных в ДОО\")))","v":{"$error":"#DIV/0!"}}]
[null,null,29,{"$f":"D19","v":0},{"$f":"E19","v":0},0,0,0,0,0,0,0,0,0,0,0,0,0,0,0,0,0,0,0,0,0,0,0,0,0,0,0,0]
[null,null,30]
[null,null,31,{"$f":"D8","v":0},{"$f":"E8","v":0},0,0,0,0,0,0,0,0,0,0,0,0,0,0,0,0,0,0,0,0,0,0,0,0,0,0,0,0,0]
[null,null,32]
[null,null,33,{"$f":"D12","v":0},{"$f":"E12","v":0},0,0,0,0,0,0,0,0,0,0,0,0,0,0,0,0,0,0,0,0,0,0,0,0,0,0,0,0,0]
["Художест-венно-эстетичес-кое развитие",null,34,{"$nulls":30},{"$f":"SUM(D37:AG44)/COUNTA(D2:AG2)/8","v":{"$error":"#DIV/0!"}},{"$f":"AH37*50","v":{"$error":"#DIV/0!"}},{"$f":"IF(AI37>95,\"требуется пересмотр образовательных задач на предмет соответствия возможностям детей\",IF(OR(AI37=75,AND(AI37>75,AI37<95)),\"условия соответствуют образовательным задачам\",IF(OR(AI37=50,AND(AI37<75,AI37>50)),\"требуется оптимизация условий, созданных в ДОО\",\"требуется коррекция условий, созданных в ДОО\")))","v":{"$error":"#DIV/0!"}}]
[null,null,35,{"$f":"D33","v":0},{"$f":"E33","v":0},0,0,0,0,0,0,0,0,0,0,0,0,0,0,0,0,0,0,0,0,0,0,0,0,0,0,0,0]
[null,null,36,{"$f":"D10","v":0},{"$f":"E10","v":0},0,0,0,0,0,0,0,0,0,0,0,0,0,0,0,0,0,0,0,0,0,0,0,0,0,0,0,0]
[null,null,37]
[null,null,38]
[null,null,39]
[null,null,40]
[null,null,41]
["Физическое развитие",null,42,{"$nulls":30},{"$f":"SUM(D45:AG54)/COUNTA(D2:AG2)/10","v":{"$error":"#DIV/0!"}},{"$f":"AH45*50","v":{"$error":"#DIV/0!"}},{"$f":"IF(AI45>95,\"требуется пересмотр образовательных задач на предмет соответствия возможностям детей\",IF(OR(AI45=75,AND(AI45>75,AI45<95)),\"условия соответствуют образовательным задачам\",IF(OR(AI45=50,AND(AI45<75,AI45>50)),\"требуется оптимизация условий, созданных в ДОО\",\"требуется коррекция условий, созданных в ДОО\")))","v":{"$error":"#DIV/0!"}}]
[null,null,43]
[null,null,44]
[null,null,45]
[null,null,46]
[null,null,47]
[null,null,48,{"$f":"D30","v":0},{"$f":"E30","v":0},0,0,0,0,0,0,0,0,0,0,0,0,0,0,0,0,0,0,0,0,0,0,0,0,0,0,0,0,0]
[null,null,49]
[null,null,50]
[null,null,51]
["Оценка успешности продвижения ребен-ка в образователь-ном пространстве (значение)",null,null,{"$f":"(SUM(D4:D21)+SUM(D25:D31)+D33+D35+D37+SUM(D40:D50)+SUM(D52:D54))/42*50","v":{"v":0,"d":"0.00"}},{"$f":"(SUM(E4:E21)+SUM(E25:E31)+E33+E35+E37+SUM(E40:E50)+SUM(E52:E54))/42*50","v":{"v":0,"d":"0.00"}},{"v":0,"d":"0.00"},{"v":0,"d":"0.00"},{"v":0,"d":"0.00"},{"v":0,"d":"0.00"},{"v":0,"d":"0.00"},{"v":0,"d":"0.00"},{"v":0,"d":"0.00"},{"v":0,"d":"0.00"},{"v":0,"d":"0.00"},{"v":0,"d":"0.00"},{"v":0,"d":"0.00"},{"v":0,"d":"0.00"},{"v":0,"d":"0.00"},{"v":0,"d":"0.00"},{"v":0,"d":"0.00"},{"v":0,"d":"0.00"},{"v":0,"d":"0.00"},{"v":0,"d":"0.00"},{"v":0,"d":"0.00"},{"v":0,"d":"0.00"},{"v":0,"d":"0.00"},{"v":0,"d":"0.00"},{"v":0,"d":"0.00"},{"v":0,"d":"0.00"},{"v":0,"d":"0.00"},{"v":0,"d":"0.00"},{"v":0,"d":"0.00"},{"v":0,"d":"0.00"},{"$f":"SUM(D4:AG54)/COUNTA(D2:AG2)/51","v":{"$error":"#DIV/0!"}},{"$f":"AH55*50","v":{"$error":"#DIV/0!"}},{"$f":"IF(AI55>95,\"требуется пересмотр образовательных задач на предмет соответствия возможностям детей\",IF(OR(AI55=75,AND(AI55>75,AI55<95)),\"условия соответствуют образовательным задачам\",IF(OR(AI55=50,AND(AI55<75,AI55>50)),\"требуется оптимизация условий, созданных в ДОО\",\"требуется коррекция условий, созданных в ДОО\")))","v":{"$error":"#DIV/0!"}}]
["Оценка успешности продвижения ребенка в образовательном пространстве (интерпретация)",null,null,{"$f":"IF(COUNTA(D2)=0,0,IF(D55>95,\"высокий темп развития\",IF(OR(D55=75,AND(D55>75,D55<95)),\"успешное развитие\",IF(OR(D55=50,AND(D55<75,D55>50)),\"норма развития\",IF(OR(D55=30,AND(D55<59,D55>30)),\"разраб.инд.образ.маршрута и/или психол.диагн.\",\"рекомендуется комплексное психол.обследование\")))))","v":0},{"$f":"IF(COUNTA(E2)=0,0,IF(E55>95,\"высокий темп развития\",IF(OR(E55=75,AND(E55>75,E55<95)),\"успешное развитие\",IF(OR(E55=50,AND(E55<75,E55>50)),\"норма развития\",IF(OR(E55=30,AND(E55<59,E55>30)),\"разраб.инд.образ.маршрута и/или психол.диагн.\",\"рекомендуется комплексное психол.обследование\")))))","v":0},0,0,0,0,0,0,0,0,0,0,0,0,0,0,0,0,0,0,0,0,0,0,0,0,0,0,0,0]

{"sheet":"4-й год","index":4,"n_rows":102,"n_cols":38,"rows_kept":102,"merged":[[0,0,0,37],[1,0,2,2],[1,37,2,37],[3,0,20,1],[3,2,3,34],[3,37,20,37],[6,2,6,34],[9,2,9,34],[13,2,13,34],[21,0,26,1],[21,2,21,34],[21,37,26,37],[24,2,24,34],[27,0,39,1],[27,2,27,34],[27,37,39,37],[31,2,31,34],[35,2,35,34],[40,0,56,1],[40,2,40,34],[40,37,56,37],[46,2,46,34],[54,2,54,34],[57,0,71,1],[57,2,57,34],[57,37,71,37],[60,2,60,34],[64,2,64,34],[66,2,66,34],[69,2,69,34],[72,0,86,1],[72,2,72,34],[72,37,86,37],[79,2,79,34],[81,2,81,34],[87,0,99,1],[87,2,87,34],[87,37,99,37],[93,2,93,34],[95,2,95,34],[97,2,97,34],[100,0,100,2],[100,37,101,37],[101,0,101,2]]}
["Карта наблюдений за детьми 4-го года жизни"]
["          Фамилии, \n               имена \n                   детей \n               группы\n\n\n\nОбразова-                   тельные \nобласти:",{"$nulls":34},"среднее","Оценка адекватности форм и методов образовательной работы (значение)","Оценка адекватности форм и методов образовательной работы"]
[{"$nulls":3},1,2,3,4,5,6,7,8,9,10,11,12,13,14,15,16,17,18,19,20,21,22,23,24,25,26,27,28,29,30,31,32]
["Социально-коммуника-тивное развитие",null,"усвоение норм и ценностей, принятых в обществе, включая моральные и нравственные ценности; развитие социального и эмоционального интеллекта, эмоциональной отзывчивости, сопереживания",{"$nulls":32},{"$f":"SUM(D4:AI27)/COUNTA(D2:AI2)/18","v":{"$error":"#DIV/0!"}},{"$f":"AJ4*50","v":{"$error":"#DIV/0!"}},{"$f":"IF(AK4>95,\"требуется пересмотр образовательных задач на предмет соответствия возможностям детей\",IF(OR(AK4=75,AND(AK4>75,AK4<95)),\"условия соответствуют образовательным задачам\",IF(OR(AK4=50,AND(AK4<75,AK4>50)),\"требуется оптимизация условий, созданных в ДОО\",\"требуется коррекция условий, созданных в ДОО\")))","v":{"$error":"#DIV/0!"}}]
[null,null,1]
[null,null,{"$f":"C5+1","v":2}]
[null,null,"формирование уважительного отношения и чувства принадлежности к своей семье и к сообществу детей и взрослых в Организации"]
[null,null,{"$f":"C6+1","v":3}]
[null,null,{"$f":"C8+1","v":4}]
[null,null,"формирование готовности к совместной деятельности со сверстниками, развитие общения и взаимодействия ребенка со взрослыми и сверстниками"]
[null,null,{"$f":"C9+1","v":5}]
[null,null,{"$f":"C11+1","v":6}]
[null,null,7]
[null,null,"становление самостоятельности, целенаправленности и саморегуляции собственных действий"]
[null,null,{"$f":"C13+1","v":8}]
[null,null,9]
[null,null,10]
[null,null,11]
[null,null,12]
[null,null,13]
[null,null,14]
["Социально-коммуника-тивное развитие",null,"формирование позитивных установок к различным видам труда и творчества ",{"$nulls":34},"см. предыдущий лист"]
[null,null,{"$f":"C21+1","v":15}]
[null,null,16]
[null,null,"формирование основ безопасного поведения в быту, социуме, природе"]
[null,null,{"$f":"C24+1","v":17}]
[null,null,18]
["Познава-тельное развитие",null,"развитие интересов детей, любознательности и познавательной мотивации",{"$nulls":32},{"$f":"SUM(D28:AI57)/COUNTA(D2:AI2)/24","v":{"$error":"#DIV/0!"}},{"$f":"AJ28*50","v":{"$error":"#DIV/0!"}},{"$f":"IF(AK28>95,\"требуется пересмотр образовательных задач на предмет соответствия возможностям детей\",IF(OR(AK28=75,AND(AK28>75,AK28<95)),\"условия соответствуют образовательным задачам\",IF(OR(AK28=50,AND(AK28<75,AK28>50)),\"требуется оптимизация условий, созданных в ДОО\",\"требуется коррекция условий, созданных в ДОО\")))","v":{"$error":"#DIV/0!"}}]
[null,null,{"$f":"C27+1","v":19}]
[null,null,20]
[null,null,{"$f":"C30+1","v":21}]
[null,null,"формирование познавательных действий"]
[null,null,{"$f":"C31+1","v":22}]
[null,null,23]
[null,null,{"$f":"C34+1","v":24},{"$f":"D27","v":0},{"$f":"E27","v":0},0,0,0,0,0,0,0,0,0,0,0,0,0,0,0,0,0,0,0,0,0,0,0,0,0,0,0,0,0,0,0]
[null,null,"развитие воображения и творческой активности"]
[null,null,{"$f":"C35+1","v":25}]
[null,null,{"$f":"C37+1","v":26}]
[null,null,{"$f":"C38+1","v":27},{"$f":"D21","v":0},{"$f":"E21","v":0},0,0,0,0,0,0,0,0,0,0,0,0,0,0,0,0,0,0,0,0,0,0,0,0,0,0,0,0,0,0]
[null,null,28]
["Познава-тельное развитие",null,"формирование первичных представлений о себе, других людях, становление сознания",{"$nulls":33},{"$f":"AJ28*50","v":{"$error":"#DIV/0!"}},{"$f":"IF(AK28>95,\"требуется пересмотр образовательных задач на предмет соответствия возможностям детей\",IF(OR(AK28=75,AND(AK28>75,AK28<95)),\"условия соответствуют образовательным задачам\",IF(OR(AK28=50,AND(AK28<75,AK28>50)),\"требуется оптимизация условий, созданных в ДОО\",\"требуется коррекция условий, созданных в ДОО\")))","v":{"$error":"#DIV/0!"}}]
[null,null,{"$f":"C40+1","v":29}]
[null,null,{"$f":"C42+1","v":30}]
[null,null,{"$f":"C43+1","v":31},{"$f":"D8","v":0},{"$f":"E8","v":0},0,0,0,0,0,0,0,0,0,0,0,0,0,0,0,0,0,0,0,0,0,0,0,0,0,0,0,0,0,0]
[null,null,32,{"$f":"D9","v":0},{"$f":"E9","v":0},0,0,0,0,0,0,0,0,0,0,0,0,0,0,0,0,0,0,0,0,0,0,0,0,0,0,0,0,0,0]
[null,null,33,{"$f":"D24","v":0},{"$f":"E24","v":0},0,0,0,0,0,0,0,0,0,0,0,0,0,0,0,0,0,0,0,0,0,0,0,0,0,0,0,0,0,0]
[null,null,"формирование первичных представлений об объектах окружающего мира, о свойствах и отношениях объектов окружающего мира (форме, цвете, размере, материале, звучании, ритме, темпе, количестве, числе, части и целом, пространстве и времени, движении и покое, причинах и следствиях и др.), "]
[null,null,{"$f":"C46+1","v":34}]
[null,null,{"$f":"C48+1","v":35}]
[null,null,36]
[null,null,37]
[null,null,38]
[null,null,39]
[null,null,40]
[null,null,"формирование первичных представлений о малой родине и Отечестве, представлений о социокультурных ценностях нашего народа, об отечественных традициях и праздниках, о планете Земля как общем доме людей, об особенностях ее природы, многообразии стран и народов мира"]
[null,null,{"$f":"C54+1","v":41},{"$f":"D23","v":0},{"$f":"E23","v":0},0,0,0,0,0,0,0,0,0,0,0,0,0,0,0,0,0,0,0,0,0,0,0,0,0,0,0,0,0,0]
[null,null,42]
["Речевое развитие",null,"владение речью как средством общения и культуры",{"$nulls":32},{"$f":"SUM(D58:AI72)/COUNTA(D2:AI2)/10","v":{"$error":"#DIV/0!"}},{"$f":"AJ58*50","v":{"$error":"#DIV/0!"}},{"$f":"IF(AK58>95,\"требуется пересмотр образовательных задач на предмет соответствия возможностям детей\",IF(OR(AK58=75,AND(AK58>75,AK58<95)),\"условия соответствуют образовательным задачам\",IF(OR(AK58=50,AND(AK58<75,AK58>50)),\"требуется оптимизация условий, созданных в ДОО\",\"требуется коррекция условий, созданных в ДОО\")))","v":{"$error":"#DIV/0!"}}]
[null,null,{"$f":"C57+1","v":43},{"$f":"D31","v":0},{"$f":"E31","v":0},0,0,0,0,0,0,0,0,0,0,0,0,0,0,0,0,0,0,0,0,0,0,0,0,0,0,0,0,0,0]
[null,null,44]
[null,null,"обогащение активного словаря; развитие связной, грамматически правильной диалогической и монологической речи"]
[null,null,{"$f":"C60+1","v":45}]
[null,null,46,{"$f":"D13","v":0},{"$f":"E13","v":0},0,0,0,0,0,0,0,0,0,0,0,0,0,0,0,0,0,0,0,0,0,0,0,0,0,0,0,0,0,0]
[null,null,47]
[null,null,"развитие речевого творчества"]
[null,null,{"$f":"C64+1","v":48},{"$f":"D30","v":0},{"$f":"E30","v":0},0,0,0,0,0,0,0,0,0,0,0,0,0,0,0,0,0,0,0,0,0,0,0,0,0,0,0,0,0,0]
[null,null,"знакомство с книжной культурой, детской литературой, понимание на слух текстов различных жанров детской литературы"]
[null,null,{"$f":"C66+1","v":49}]
[null,null,50]
[null,null,"развитие звуковой и интонационной культуры речи, фонематического слуха; формирование звуковой аналитико-синтетической активности как предпосылки обучения грамоте"]
[null,null,{"$f":"C69+1","v":51}]
[null,null,52]
["Художест-венно-эстетичес-кое развитие",null,"развитие предпосылок ценностно-смыслового восприятия и понимания произведений искусства (словесного, музыкального, изобразительного), мира природы; становление эстетического отношения к окружающему миру; восприятие музыки, художественной литературы, фольклора",{"$nulls":32},{"$f":"SUM(D74:AI87)/COUNTA(D2:AI2)/12","v":{"$error":"#DIV/0!"}},{"$f":"AJ73*50","v":{"$error":"#DIV/0!"}},{"$f":"IF(AK73>95,\"требуется пересмотр образовательных задач на предмет соответствия возможностям детей\",IF(OR(AK73=75,AND(AK73>75,AK73<95)),\"условия соответствуют образовательным задачам\",IF(OR(AK73=50,AND(AK73<75,AK73>50)),\"требуется оптимизация условий, созданных в ДОО\",\"требуется коррекция условий, созданных в ДОО\")))","v":{"$error":"#DIV/0!"}}]
[null,null,{"$f":"C72+1","v":53}]
[null,null,54,{"$f":"D20","v":0},{"$f":"E20","v":0},0,0,0,0,0,0,0,0,0,0,0,0,0,0,0,0,0,0,0,0,0,0,0,0,0,0,0,0,0,0]
[null,null,55,{"$f":"D68","v":0},{"$f":"E68","v":0},0,0,0,0,0,0,0,0,0,0,0,0,0,0,0,0,0,0,0,0,0,0,0,0,0,0,0,0,0,0]
[null,null,56,{"$f":"D64","v":0},{"$f":"E64","v":0},0,0,0,0,0,0,0,0,0,0,0,0,0,0,0,0,0,0,0,0,0,0,0,0,0,0,0,0,0,0]
[null,null,57]
[null,null,58]
[null,null,"стимулирование сопереживания персонажам художественных произведений"]
[null,null,{"$f":"C79+1","v":59},{"$f":"D6","v":0},{"$f":"E6","v":0},0,0,0,0,0,0,0,0,0,0,0,0,0,0,0,0,0,0,0,0,0,0,0,0,0,0,0,0,0,0]
[null,null,"реализация самостоятельной творческой деятельности детей (изобразительной, конструктивно-модельной, музыкальной и др.)"]
[null,null,{"$f":"C81+1","v":60}]
[null,null,61]
[null,null,62]
[null,null,63]
[null,null,64]
["Физическое развитие",null,"приобретение опыта в следующих видах деятельности детей: двигательной, в том числе связанной с выполнением упражнений, направленных на развитие таких физических качеств, как координация и гибкость; способствующих правильному формированию опорно-двигательной системы организма, развитию равновесия, координации движения, крупной и мелкой моторики обеих рук, а также с правильным, не наносящем ущерба организму, выполнением основных движений (ходьба, бег, мягкие прыжки, повороты в обе стороны)",{"$nulls":32},{"$f":"SUM(D89:AI100)/COUNTA(D2:AI2)/9","v":{"$error":"#DIV/0!"}},{"$f":"AJ88*50","v":{"$error":"#DIV/0!"}},{"$f":"IF(AK88>95,\"требуется пересмотр образовательных задач на предмет соответствия возможностям детей\",IF(OR(AK88=75,AND(AK88>75,AK88<95)),\"условия соответствуют образовательным задачам\",IF(OR(AK88=50,AND(AK88<75,AK88>50)),\"требуется оптимизация условий, созданных в ДОО\",\"требуется коррекция условий, созданных в ДОО\")))","v":{"$error":"#DIV/0!"}}]
[null,null,{"$f":"C87+1","v":65}]
[null,null,66]
[null,null,67]
[null,null,68]
[null,null,69]
[null,null,"формирование начальных представлений о некоторых видах спорта, овладение подвижными играми с правилами"]
[null,null,{"$f":"C93+1","v":70}]
[null,null,"становление целенаправленности и саморегуляции в двигательной сфере"]
[null,null,{"$f":"C95+1","v":71}]
[null,null,"становление ценностей здорового образа жизни, овладение его элементарными нормами и правилами (в питании, двигательном режиме, закаливании, при формировании полезных привычек и др.)"]
[null,null,{"$f":"C97+1","v":72}]
[null,null,73]
["Оценка успешности продвижения ребен-ка в образователь-ном пространстве (значение)",null,null,{"$f":"(SUM(D5:D34)+SUM(D37:D38)+SUM(D40:D43)+SUM(D48:D54)+D57+SUM(D68:D74)+SUM(D60:D62)+D64+SUM(D78:D79)+SUM(D83:D100))/60*50","v":{"v":0,"d":"0.00"}},{"$f":"(SUM(E5:E34)+SUM(E37:E38)+SUM(E40:E43)+SUM(E48:E54)+E57+SUM(E68:E74)+SUM(E60:E62)+E64+SUM(E78:E79)+SUM(E83:E100))/60*50","v":{"v":0,"d":"0.00"}},{"v":0,"d":"0.00"},{"v":0,"d":"0.00"},{"v":0,"d":"0.00"},{"v":0,"d":"0.00"},{"v":0,"d":"0.00"},{"v":0,"d":"0.00"},{"v":0,"d":"0.00"},{"v":0,"d":"0.00"},{"v":0,"d":"0.00"},{"v":0,"d":"0.00"},{"v":0,"d":"0.00"},{"v":0,"d":"0.00"},{"v":0,"d":"0.00"},{"v":0,"d":"0.00"},{"v":0,"d":"0.00"},{"v":0,"d":"0.00"},{"v":0,"d":"0.00"},{"v":0,"d":"0.00"},{"v":0,"d":"0.00"},{"v":0,"d":"0.00"},{"v":0,"d":"0.00"},{"v":0,"d":"0.00"},{"v":0,"d":"0.00"},{"v":0,"d":"0.00"},{"v":0,"d":"0.00"},{"v":0,"d":"0.00"},{"v":0,"d":"0.00"},{"v":0,"d":"0.00"},{"v":0,"d":"0.00"},{"v":0,"d":"0.00"},{"$f":"SUM(D4:AI100)/COUNTA(D2:AI2)/73","v":{"$error":"#DIV/0!"}},{"$f":"AJ101*50","v":{"$error":"#DIV/0!"}},{"$f":"IF(AK101>95,\"требуется пересмотр образовательных задач на предмет соответствия возможностям детей\",IF(OR(AK101=75,AND(AK101>75,AK101<95)),\"условия соответствуют образовательным задачам\",IF(OR(AK101=50,AND(AK101<75,AK101>50)),\"требуется оптимизация условий, созданных в ДОО\",\"требуется коррекция условий, созданных в ДОО\")))","v":{"$error":"#DIV/0!"}}]
["Оценка успешности продвижения ребенка в образовательном пространстве (интерпретация)",null,null,{"$f":"IF(COUNTA(D2)=0,0,IF(OR(D101=95,D101>95),\"высокий темп развития\",IF(OR(D101=75,AND(D101>75,D101<95)),\"успешное развитие\",IF(OR(D101=50,AND(D101<75,D101>50)),\"норма развития\",IF(OR(D101=30,AND(D101<59,D101>30)),\"разраб.инд.образ.маршрута и/или психол.диагн.\",\"рекомендуется комплексное психол.обследование\")))))","v":0},{"$f":"IF(COUNTA(E2)=0,0,IF(OR(E101=95,E101>95),\"высокий темп развития\",IF(OR(E101=75,AND(E101>75,E101<95)),\"успешное развитие\",IF(OR(E101=50,AND(E101<75,E101>50)),\"норма развития\",IF(OR(E101=30,AND(E101<59,E101>30)),\"разраб.инд.образ.маршрута и/или психол.диагн.\",\"рекомендуется комплексное психол.обследование\")))))","v":0},0,0,0,0,0,0,0,0,0,0,0,0,0,0,0,0,0,0,0,0,0,0,0,0,0,0,0,0,0,0]

{"sheet":"2 группа май","index":5,"n_rows":118,"n_cols":38,"rows_kept":118,"merged":[[0,0,0,37],[1,0,2,2],[1,37,2,37],[3,0,15,1],[3,2,3,34],[3,37,34,37],[8,2,8,34],[10,2,10,34],[16,0,34,1],[16,2,16,34],[26,2,26,34],[31,2,31,34],[35,0,57,1],[35,2,35,34],[35,37,57,37],[39,2,39,34],[50,2,50,34],[58,0,71,1],[58,2,58,34],[58,37,71,37],[64,2,64,34],[69,2,69,34],[72,0,87,1],[72,2,72,34],[72,37,87,37],[76,2,76,34],[80,2,80,34],[83,2,83,34],[85,2,85,34],[88,0,102,1],[88,2,88,34],[88,37,102,37],[97,2,97,34],[99,2,99,34],[103,0,115,1],[103,2,103,34],[103,37,115,37],[109,2,109,34],[111,2,111,34],[113,2,113,34],[116,0,116,2],[116,37,117,37],[117,0,117,2]]}
["Карта наблюдений за детьми 5-го года жизни"]
["          Фамилии, \n               имена \n                   детей \n               группы\n\n\n\nОбразова-                   тельные \nобласти:",null,null,"Артамонова Анна","Безменов Святослав","Вагизова Амелия","Валиева Элина","Валиев Салим","Гайнутдинова Элина","Гиниятуллин Камиль","Гумеров Камиль","Загидуллин Артур","Зарипов Шамиль","Кандилов Матвей","Кутдусова Наргиза","Лернер Софья","Миндукова София","Молдован Маргарита","Паршутина Ева","Рубцов Родион","Сафронов Павел","Тагиров Амир","Трошкина Аврора","Туктарова Ляйсан","Фазлеев Сулейман","Федоров Федор","Хисматуллина Раяна","Шагеева Мия","Шарафутдинов Самат","Юсупова Бернара",{"$nulls":5},"среднее","Оценка адекватности форм и методов образовательной работы (значение)","Оценка адекватности форм и методов образовательной работы"]
[{"$nulls":3},1,2,3,4,5,6,7,8,9,10,11,12,13,14,15,16,17,18,19,20,21,22,23,24,25,26,27,28,29,30,31,32]
["Социально-коммуника-тивное развитие",null,"усвоение норм и ценностей, принятых в обществе, включая моральные и нравственные ценности; развитие социального и эмоционального интеллекта, эмоциональной отзывчивости, сопереживания",{"$nulls":32},{"$f":"SUM(D4:AI35)/COUNTA(D2:AI2)/26","v":{"v":0.6737891737891738,"d":"0.67"}},{"$f":"AJ4*50","v":{"v":33.68945868945869,"d":"33.69"}},{"$f":"IF(AK4>95,\"требуется пересмотр образовательных задач на предмет соответствия возможностям детей\",IF(OR(AK4=75,AND(AK4>75,AK4<95)),\"условия соответствуют образовательным задачам\",IF(OR(AK4=50,AND(AK4<75,AK4>50)),\"требуется оптимизация условий, созданных в ДОО\",\"требуется коррекция условий, созданных в ДОО\")))","v":"требуется коррекция условий, созданных в ДОО"}]
[null,null,1,2,2,2,2,2,2,2,2,2,2,2,2,2,2,2,2,2,2,2,2,2,2,2,2,2,2,2]
[null,null,{"$f":"C5+1","v":2},2,2,2,2,2,2,2,1,2,2,2,2,2,2,2,2,1,1,2,2,2,2,2,2,2,2,2]
[null,null,{"$f":"C6+1","v":3},2,2,2,2,2,2,2,2,2,2,2,2,2,2,2,2,2,2,2,2,2,2,2,2,2,2,2]
[null,null,4,1,2,2,2,1,2,1,1,1,2,2,2,2,2,2,2,2,1,2,2,2,2,2,2,2,2,2]
[null,null,"формирование уважительного отношения и чувства принадлежности к своей семье и к сообществу детей и взрослых в Организации"]
[null,null,{"$f":"C8+1","v":5}]
[null,null,"формирование готовности к совместной деятельности со сверстниками, развитие общения и взаимодействия ребенка со взрослыми и сверстниками"]
[null,null,{"$f":"C10+1","v":6},2,2,2,2,2,2,2,1,2,2,2,2,2,2,2,2,1,1,2,2,2,2,2,2,2,2,2]
[null,null,{"$f":"C12+1","v":7},2,2,2,2,2,2,2,2,2,2,2,2,2,2,2,2,2,2,2,2,2,2,2,2,2,2,2]
[null,null,{"$f":"C13+1","v":8},2,2,2,2,2,2,2,2,2,2,2,2,2,2,2,2,2,2,2,2,2,2,2,2,2,2,2]
[null,null,9,2,2,2,2,2,2,2,1,2,2,2,2,2,2,2,2,2,2,2,2,2,2,2,2,2,2,2]
[null,null,10,2,2,2,2,2,2,2,2,2,2,2,2,2,2,2,2,2,2,2,2,2,2,2,2,2,2,2]
["Социально-коммуника-тивное развитие",null,"становление самостоятельности, целенаправленности и саморегуляции собственных действий"]
[null,null,{"$f":"C16+1","v":11}]
[null,null,{"$f":"C18+1","v":12}]
[null,null,13]
[null,null,14]
[null,null,15]
[null,null,16]
[null,null,17]
[null,null,18]
[null,null,19]
[null,null,"формирование позитивных установок к различным видам труда и творчества "]
[null,null,{"$f":"C26+1","v":20}]
[null,null,21]
[null,null,22]
[null,null,23]
[null,null,"формирование основ безопасного поведения в быту, социуме, природе"]
[null,null,{"$f":"C31+1","v":24}]
[null,null,25]
[null,null,26]
["Познава-тельное развитие",null,"развитие интересов детей, любознательности и познавательной мотивации",{"$nulls":32},{"$f":"SUM(D36:AI72)/COUNTA(D2:AI2)/31","v":{"v":0,"d":"0.00"}},{"$f":"AJ36*50","v":{"v":0,"d":"0.00"}},{"$f":"IF(AK36>95,\"требуется пересмотр образовательных задач на предмет соответствия возможностям детей\",IF(OR(AK36=75,AND(AK36>75,AK36<95)),\"условия соответствуют образовательным задачам\",IF(OR(AK36=50,AND(AK36<75,AK36>50)),\"требуется оптимизация условий, созданных в ДОО\",\"требуется коррекция условий, созданных в ДОО\")))","v":"требуется коррекция условий, созданных в ДОО"}]
[null,null,{"$f":"C35+1","v":27},{"$f":"D21","v":0},{"$f":"E21","v":0},0,0,0,0,0,0,0,0,0,0,0,0,0,0,0,0,0,0,0,0,0,0,0,0,0,0,{"$f":"AF21","v":0},0,0,0]
[null,null,28,{"$f":"D25","v":0},{"$f":"E25","v":0},0,0,0,0,0,0,0,0,0,0,0,0,0,0,0,0,0,0,0,0,0,0,0,0,0,0,{"$f":"AF25","v":0},0,0,0]
[null,null,{"$f":"C38+1","v":29}]
[null,null,"формирование познавательных действий"]
[null,null,{"$f":"C39+1","v":30}]
[null,null,31,{"$f":"D23","v":0},{"$f":"E23","v":0},0,0,0,0,0,0,0,0,0,0,0,0,0,0,0,0,0,0,0,0,0,0,0,0,0,0,0,0,0,0]
[null,null,32]
[null,null,33]
[null,null,34]
[null,null,35]
[null,null,36]
[null,null,37]
[null,null,38]
[null,null,39]
[null,null,"развитие воображения и творческой активности"]
[null,null,{"$f":"C50+1","v":40}]
[null,null,41]
[null,null,42,{"$f":"D28","v":0},{"$f":"E28","v":0},0,0,0,0,0,0,0,0,0,0,0,0,0,0,0,0,0,0,0,0,0,0,0,0,0,0,{"$f":"AF28","v":0},0,0,0]
[null,null,43,{"$f":"D22","v":0},{"$f":"E22","v":0},0,0,0,0,0,0,0,0,0,0,0,0,0,0,0,0,0,0,0,0,0,0,0,0,0,0,{"$f":"AF22","v":0},0,0,0]
[null,null,44]
[null,null,45]
[null,null,46]
["Познава-тельное развитие",null,"формирование первичных представлений о себе, других людях, становление сознания"]
[null,null,{"$f":"C58+1","v":47}]
[null,null,{"$f":"C60+1","v":48}]
[null,null,{"$f":"C61+1","v":49},{"$f":"D10","v":0},{"$f":"E10","v":0},0,0,0,0,0,0,0,0,0,0,0,0,0,0,0,0,0,0,0,0,0,0,0,0,0,0,0,0,0,0]
[null,null,50,{"$f":"D30","v":0},{"$f":"E30","v":0},0,0,0,0,0,0,0,0,0,0,0,0,0,0,0,0,0,0,0,0,0,0,0,0,0,0,0,0,0,0]
[null,null,51,{"$f":"D31","v":0},{"$f":"E31","v":0},0,0,0,0,0,0,0,0,0,0,0,0,0,0,0,0,0,0,0,0,0,0,0,0,0,0,0,0,0,0]
[null,null,"формирование первичных представлений об объектах окружающего мира, о свойствах и отношениях объектов окружающего мира (форме, цвете, размере, материале, звучании, ритме, темпе, количестве, числе, части и целом, пространстве и времени, движении и покое, причинах и следствиях и др.), "]
[null,null,{"$f":"C64+1","v":52}]
[null,null,{"$f":"C66+1","v":53}]
[null,null,54]
[null,null,55]
[null,null,"формирование первичных представлений о малой родине и Отечестве, представлений о социокультурных ценностях нашего народа, об отечественных традициях и праздниках, о планете Земля как общем доме людей, об особенностях ее природы, многообразии стран и народов мира"]
[null,null,{"$f":"C69+1","v":56}]
[null,null,57]
["Речевое развитие",null,"владение речью как средством общения и культуры",{"$nulls":32},{"$f":"SUM(D74:AI88)/COUNTA(D2:AI2)/11","v":{"v":0.5218855218855218,"d":"0.52"}},{"$f":"AJ73*50","v":{"v":26.094276094276093,"d":"26.09"}},{"$f":"IF(AK73>95,\"требуется пересмотр образовательных задач на предмет соответствия возможностям детей\",IF(OR(AK73=75,AND(AK73>75,AK73<95)),\"условия соответствуют образовательным задачам\",IF(OR(AK73=50,AND(AK73<75,AK73>50)),\"требуется оптимизация условий, созданных в ДОО\",\"требуется коррекция условий, созданных в ДОО\")))","v":"требуется коррекция условий, созданных в ДОО"}]
[null,null,{"$f":"C72+1","v":58},{"$f":"D14","v":2},{"$f":"E14","v":2},2,2,2,2,2,2,2,2,2,2,2,2,2,2,2,2,2,2,2,2,2,2,2,2,2,0,0,0,0,0]
[null,null,{"$f":"C74+1","v":59},{"$f":"D15","v":2},{"$f":"E15","v":2},2,2,2,2,2,1,2,2,2,2,2,2,2,2,2,2,2,2,2,2,2,2,2,2,2,0,0,0,0,0]
[null,null,{"$f":"C75+1","v":60},{"$f":"D8","v":1},{"$f":"E8","v":2},2,2,1,2,1,1,1,2,2,2,2,2,2,2,2,1,2,2,2,2,2,2,2,2,2,0,0,0,0,0]
[null,null,"обогащение активного словаря; развитие связной, грамматически правильной диалогической и монологической речи"]
[null,null,{"$f":"C76+1","v":61}]
[null,null,62,{"$f":"D56","v":0},{"$f":"E56","v":0},0,0,0,0,0,0,0,0,0,0,0,0,0,0,0,0,0,0,0,0,0,0,0,0,0,0,0,0,0,0]
[null,null,63,{"$f":"D68","v":0},{"$f":"E68","v":0},0,0,0,0,0,0,0,0,0,0,0,0,0,0,0,0,0,0,0,0,0,0,0,0,0,0,0,0,0,0]
[null,null,"развитие речевого творчества"]
[null,null,{"$f":"C80+1","v":64}]
[null,null,65,{"$f":"D58","v":0},{"$f":"E58","v":0},0,0,0,0,0,0,0,0,0,0,0,0,0,0,0,0,0,0,0,0,0,0,0,0,0,0,0,0,0,0]
[null,null,"знакомство с книжной культурой, детской литературой, понимание на слух текстов различных жанров детской литературы"]
[null,null,{"$f":"C83+1","v":66}]
[null,null,"развитие звуковой и интонационной культуры речи, фонематического слуха; формирование звуковой аналитико-синтетической активности как предпосылки обучения грамоте"]
[null,null,{"$f":"C85+1","v":67}]
[null,null,68]
["Художест-венно-эстетичес-кое развитие",null,"развитие предпосылок ценностно-смыслового восприятия и понимания произведений искусства (словесного, музыкального, изобразительного), мира природы; становление эстетического отношения к окружающему миру; восприятие музыки, художественной литературы, фольклора",{"$nulls":32},{"$f":"SUM(D90:AI103)/COUNTA(D2:AI2)/12","v":{"v":0.47222222222222227,"d":"0.47"}},{"$f":"AJ89*50","v":{"v":23.611111111111114,"d":"23.61"}},{"$f":"IF(AK89>95,\"требуется пересмотр образовательных задач на предмет соответствия возможностям детей\",IF(OR(AK89=75,AND(AK89>75,AK89<95)),\"условия соответствуют образовательным задачам\",IF(OR(AK89=50,AND(AK89<75,AK89>50)),\"требуется оптимизация условий, созданных в ДОО\",\"требуется коррекция условий, созданных в ДОО\")))","v":"требуется коррекция условий, созданных в ДОО"}]
[null,null,{"$f":"C88+1","v":69}]
[null,null,70,{"$f":"D53","v":0},{"$f":"E53","v":0},0,0,0,0,0,0,0,0,0,0,0,0,0,0,0,0,0,0,0,0,0,0,0,0,0,0,0,0,0,0,{"v":0,"d":"0.00"}]
[null,null,{"$f":"C91+1","v":71},{"$f":"D26","v":0},{"$f":"E26","v":0},0,0,0,0,0,0,0,0,0,0,0,0,0,0,0,0,0,0,0,0,0,0,0,0,0,0,0,0,0,0,{"v":0,"d":"0.00"}]
[null,null,72,{"$f":"D8","v":1},{"$f":"E8","v":2},2,2,1,2,1,1,1,2,2,2,2,2,2,2,2,1,2,2,2,2,2,2,2,2,2,0,0,0,0,0,{"v":0,"d":"0.00"}]
[null,null,73]
[null,null,74]
[null,null,75]
[null,null,76]
[null,null,"стимулирование сопереживания персонажам художественных произведений"]
[null,null,{"$f":"C97+1","v":77},{"$f":"D6","v":2},{"$f":"E6","v":2},2,2,2,2,2,1,2,2,2,2,2,2,2,2,1,1,2,2,2,2,2,2,2,2,2,0,0,0,0,0]
[null,null,"реализация самостоятельной творческой деятельности детей (изобразительной, конструктивно-модельной, музыкальной и др.)"]
[null,null,{"$f":"C99+1","v":78},{"$f":"D16","v":2},{"$f":"E16","v":2},2,2,2,2,2,2,2,2,2,2,2,2,2,2,2,2,2,2,2,2,2,2,2,2,2,0,0,0,0,0]
[null,null,79]
[null,null,80]
["Физическое развитие",null,"приобретение опыта в следующих видах деятельности детей: двигательной, в том числе связанной с выполнением упражнений, направленных на развитие таких физических качеств, как координация и гибкость; способствующих правильному формированию опорно-двигательной системы организма, развитию равновесия, координации движения, крупной и мелкой моторики обеих рук, а также с правильным, не наносящем ущерба организму, выполнением основных движений (ходьба, бег, мягкие прыжки, повороты в обе стороны)",{"$nulls":32},{"$f":"SUM(D105:AI116)/COUNTA(D2:AI2)/9","v":{"v":0,"d":"0.00"}},{"$f":"AJ104*50","v":{"v":0,"d":"0.00"}},{"$f":"IF(AK104>95,\"требуется пересмотр образовательных задач на предмет соответствия возможностям детей\",IF(OR(AK104=75,AND(AK104>75,AK104<95)),\"условия соответствуют образовательным задачам\",IF(OR(AK104=50,AND(AK104<75,AK104>50)),\"требуется оптимизация условий, созданных в ДОО\",\"требуется коррекция условий, созданных в ДОО\")))","v":"требуется коррекция условий, созданных в ДОО"}]
[null,null,{"$f":"C103+1","v":81}]
[null,null,82]
[null,null,83]
[null,null,84]
[null,null,85]
[null,null,"формирование начальных представлений о некоторых видах спорта, овладение подвижными играми с правилами"]
[null,null,{"$f":"C109+1","v":86}]
[null,null,"становление целенаправленности и саморегуляции в двигательной сфере"]
[null,null,{"$f":"C111+1","v":87},{"$f":"D19","v":0},{"$f":"E19","v":0},0,0,0,0,0,0,0,0,0,0,0,0,0,0,0,0,0,0,0,0,0,0,0,0,0,0,0,0,0,0]
[null,null,"становление ценностей здорового образа жизни, овладение его элементарными нормами и правилами (в питании, двигательном режиме, закаливании, при формировании полезных привычек и др.)"]
[null,null,{"$f":"C113+1","v":88}]
[null,null,89]
["Оценка успешности продвижения ребен-ка в образователь-ном пространстве (значение)",null,null,{"$f":"(SUM(D5:D35)+SUM(D39:D41)+SUM(D43:D53)+SUM(D66:D72)+SUM(D56:D61)+SUM(D78)+SUM(D85:D90)+D82+SUM(D94:D97)+SUM(D102:D111)+SUM(D115:D116))/69*50","v":{"v":12.318840579710146,"d":"12.32"}},{"$f":"(SUM(E5:E35)+SUM(E39:E41)+SUM(E43:E53)+SUM(E66:E72)+SUM(E56:E61)+SUM(E78)+SUM(E85:E90)+E82+SUM(E94:E97)+SUM(E102:E111)+SUM(E115:E116))/69*50","v":{"v":13.043478260869565,"d":"13.04"}},{"v":13.043478260869565,"d":"13.04"},{"v":13.043478260869565,"d":"13.04"},{"v":12.318840579710146,"d":"12.32"},{"v":13.043478260869565,"d":"13.04"},{"v":12.318840579710146,"d":"12.32"},{"v":10.144927536231885,"d":"10.14"},{"v":12.318840579710146,"d":"12.32"},{"v":13.043478260869565,"d":"13.04"},{"v":13.043478260869565,"d":"13.04"},{"v":13.043478260869565,"d":"13.04"},{"v":13.043478260869565,"d":"13.04"},{"v":13.043478260869565,"d":"13.04"},{"v":13.043478260869565,"d":"13.04"},{"v":13.043478260869565,"d":"13.04"},{"v":11.594202898550725,"d":"11.59"},{"v":10.869565217391305,"d":"10.87"},{"v":13.043478260869565,"d":"13.04"},{"v":13.043478260869565,"d":"13.04"},{"v":13.043478260869565,"d":"13.04"},{"v":13.043478260869565,"d":"13.04"},{"v":13.043478260869565,"d":"13.04"},{"v":13.043478260869565,"d":"13.04"},{"v":13.043478260869565,"d":"13.04"},{"v":13.043478260869565,"d":"13.04"},{"v":13.043478260869565,"d":"13.04"},{"v":0,"d":"0.00"},{"v":0,"d":"0.00"},{"v":0,"d":"0.00"},{"v":0,"d":"0.00"},{"v":0,"d":"0.00"},{"$f":"SUM(D4:AI116)/COUNTA(D2:AI2)/89","v":{"v":0.32501040366208905,"d":"0.33"}},{"$f":"AJ117*50","v":{"v":16.250520183104452,"d":"16.25"}},{"$f":"IF(AK117>95,\"требуется пересмотр образовательных задач на предмет соответствия возможностям детей\",IF(OR(AK117=75,AND(AK117>75,AK117<95)),\"условия соответствуют образовательным задачам\",IF(OR(AK117=50,AND(AK117<75,AK117>50)),\"требуется оптимизация условий, созданных в ДОО\",\"требуется коррекция условий, созданных в ДОО\")))","v":"требуется коррекция условий, созданных в ДОО"}]
["Оценка успешности продвижения ребенка в образовательном пространстве (интерпретация)",null,null,{"$f":"IF(COUNTA(D18)=0,0,IF(OR(D117=95,D117>95),\"высокий темп развития\",IF(OR(D117=75,AND(D117>75,D117<95)),\"успешное развитие\",IF(OR(D117=50,AND(D117<75,D117>50)),\"норма развития\",IF(OR(D117=30,AND(D117<59,D117>30)),\"разраб.инд.образ.маршрута и/или психол.диагн.\",\"рекомендуется комплексное психол.обследование\")))))","v":0},{"$f":"IF(COUNTA(E18)=0,0,IF(OR(E117=95,E117>95),\"высокий темп развития\",IF(OR(E117=75,AND(E117>75,E117<95)),\"успешное развитие\",IF(OR(E117=50,AND(E117<75,E117>50)),\"норма развития\",IF(OR(E117=30,AND(E117<59,E117>30)),\"разраб.инд.образ.маршрута и/или психол.диагн.\",\"рекомендуется комплексное психол.обследование\")))))","v":0},0,0,0,0,0,0,0,0,0,0,0,0,0,0,0,0,0,0,0,0,0,0,0,0,0,0,0,0,0,0]

{"sheet":"8 группа май","index":6,"n_rows":112,"n_cols":38,"rows_kept":112,"merged":[[0,0,0,37],[1,0,2,2],[1,37,2,37],[3,0,21,1],[3,2,3,34],[3,37,21,37],[8,2,8,34],[11,2,11,34],[14,2,14,34],[22,0,28,1],[22,2,22,34],[22,37,28,37],[25,2,25,34],[29,0,42,1],[29,2,29,34],[29,37,42,37],[32,2,32,34],[39,2,39,34],[43,0,61,1],[43,2,43,34],[43,37,61,37],[49,2,49,34],[62,0,63,1],[62,2,62,34],[62,37,63,37],[64,0,78,1],[64,2,64,34],[64,37,78,37],[68,2,68,34],[72,2,72,34],[74,2,74,34],[77,2,77,34],[79,0,96,1],[79,2,79,34],[79,37,96,37],[84,2,84,34],[86,2,86,34],[89,2,89,34],[97,0,109,1],[97,2,97,34],[97,37,109,37],[102,2,102,34],[104,2,104,34],[107,2,107,34],[110,0,110,2],[110,37,111,37],[111,0,111,2]]}
["Карта наблюдений за детьми 6-го года жизни"]
["          Фамилии, \n               имена \n                   детей \n               группы\n\n\n\nОбразова-                   тельные \nобласти:",{"$nulls":34},"среднее","Оценка адекватности форм и методов образовательной работы (значение)","Оценка адекватности форм и методов образовательной работы"]
[{"$nulls":3},1,2,3,4,5,6,7,8,9,10,11,12,13,14,15,16,17,18,19,20,21,22,23,24,25,26,27,28,29,30,31,32]
["Социально-коммуника-тивное развитие",null,"усвоение норм и ценностей, принятых в обществе, включая моральные и нравственные ценности; развитие социального и эмоционального интеллекта, эмоциональной отзывчивости, сопереживания",{"$nulls":32},{"$f":"SUM(D4:AI29)/COUNTA(D2:AI2)/20","v":{"$error":"#DIV/0!"}},{"$f":"AJ4*50","v":{"$error":"#DIV/0!"}},{"$f":"IF(AK4>95,\"требуется пересмотр образовательных задач на предмет соответствия возможностям детей\",IF(OR(AK4=75,AND(AK4>75,AK4<95)),\"условия соответствуют образовательным задачам\",IF(OR(AK4=50,AND(AK4<75,AK4>50)),\"требуется оптимизация условий, созданных в ДОО\",\"требуется коррекция условий, созданных в ДОО\")))","v":{"$error":"#DIV/0!"}}]
[null,null,1]
[null,null,{"$f":"C5+1","v":2}]
[null,null,{"$f":"C6+1","v":3}]
[null,null,4]
[null,null,"формирование уважительного отношения и чувства принадлежности к своей семье и к сообществу детей и взрослых в Организации"]
[null,null,{"$f":"C8+1","v":5}]
[null,null,{"$f":"C10+1","v":6}]
[null,null,"формирование готовности к совместной деятельности со сверстниками, развитие общения и взаимодействия ребенка со взрослыми и сверстниками"]
[null,null,{"$f":"C11+1","v":7}]
[null,null,{"$f":"C13+1","v":8}]
[null,null,"становление самостоятельности, целенаправленности и саморегуляции собственных действий"]
[null,null,{"$f":"C14+1","v":9}]
[null,null,{"$f":"C16+1","v":10}]
[null,null,{"$f":"C17+1","v":11}]
[null,null,12]
[null,null,13]
[null,null,14]
[null,null,15]
["Социально-коммуника-тивное развитие",null,"формирование позитивных установок к различным видам труда и творчества ",{"$nulls":34},"см. предыдущий лист"]
[null,null,{"$f":"C22+1","v":16}]
[null,null,{"$f":"C24+1","v":17}]
[null,null,"формирование основ безопасного поведения в быту, социуме, природе"]
[null,null,{"$f":"C25+1","v":18}]
[null,null,{"$f":"C27+1","v":19}]
[null,null,20]
["Познава-тельное развитие",null,"развитие интересов детей, любознательности и познавательной мотивации",{"$nulls":32},{"$f":"SUM(D31:AJ64)/COUNTA(D2:AI2)/29","v":{"$error":"#DIV/0!"}},{"$f":"AJ30*50","v":{"$error":"#DIV/0!"}},{"$f":"IF(AK30>95,\"требуется пересмотр образовательных задач на предмет соответствия возможностям детей\",IF(OR(AK30=75,AND(AK30>75,AK30<95)),\"условия соответствуют образовательным задачам\",IF(OR(AK30=50,AND(AK30<75,AK30>50)),\"требуется оптимизация условий, созданных в ДОО\",\"требуется коррекция условий, созданных в ДОО\")))","v":{"$error":"#DIV/0!"}}]
[null,null,{"$f":"C29+1","v":21}]
[null,null,{"$f":"C31+1","v":22}]
[null,null,"формирование познавательных действий"]
[null,null,{"$f":"C32+1","v":23}]
[null,null,24,{"$f":"D21","v":0},{"$f":"E21","v":0},0,0,0,0,0,0,0,0,0,0,0,0,0,0,0,0,0,0,0,0,0,0,0,0,0,0,0,0,0,0]
[null,null,25]
[null,null,26,{"$f":"D17","v":0},{"$f":"E17","v":0},0,0,0,0,0,0,{"$f":"L17","v":0},0,0,0,0,0,0,0,0,0,0,0,0,0,0,0,0,0,0,0,0,0,0,0]
[null,null,27]
[null,null,28]
[null,null,"развитие воображения и творческой активности"]
[null,null,{"$f":"C39+1","v":29}]
[null,null,30]
[null,null,31,{"$f":"D22","v":0},{"$f":"E22","v":0},0,0,0,0,0,0,0,0,0,0,0,0,0,0,0,0,0,0,0,0,0,0,0,0,0,0,0,0,0,0]
["Познава-тельное развитие",null,"формирование первичных представлений о себе, других людях, становление сознания",{"$nulls":34},{"$f":"IF(AK30>95,\"требуется пересмотр образовательных задач на предмет соответствия возможностям детей\",IF(OR(AK30=75,AND(AK30>75,AK30<95)),\"условия соответствуют образовательным задачам\",IF(OR(AK30=50,AND(AK30<75,AK30>50)),\"требуется оптимизация условий, созданных в ДОО\",\"требуется коррекция условий, созданных в ДОО\")))","v":{"$error":"#DIV/0!"}}]
[null,null,{"$f":"C43+1","v":32}]
[null,null,33]
[null,null,{"$f":"C46+1","v":34},{"$f":"D25","v":0},{"$f":"E25","v":0},0,0,0,0,0,0,0,0,0,0,0,0,0,0,0,0,0,0,0,0,0,0,0,0,0,0,0,0,0,0]
[null,null,35]
[null,null,36]
[null,null,"формирование первичных представлений об объектах окружающего мира, о свойствах и отношениях объектов окружающего мира (форме, цвете, размере, материале, звучании, ритме, темпе, количестве, числе, части и целом, пространстве и времени, движении и покое, причинах и следствиях и др.), "]
[null,null,{"$f":"C49+1","v":37}]
[null,null,38]
[null,null,39]
[null,null,40]
[null,null,41]
[null,null,42]
[null,null,43]
[null,null,44]
[null,null,45]
[null,null,46]
[null,null,47]
[null,null,48]
["Познава-тельное развитие",null,"формирование первичных представлений о малой родине и Отечестве, представлений о социокультурных ценностях нашего народа, об отечественных традициях и праздниках, о планете Земля как общем доме людей, об особенностях ее природы, многообразии стран и народов мира",{"$nulls":34},"см. преды-дущий лист"]
[null,null,{"$f":"C62+1","v":49}]
["Речевое развитие",null,"владение речью как средством общения и культуры",{"$nulls":32},{"$f":"SUM(D66:AI79)/COUNTA(D2:AI2)/10","v":{"$error":"#DIV/0!"}},{"$f":"AJ65*50","v":{"$error":"#DIV/0!"}},{"$f":"IF(AK65>95,\"требуется пересмотр образовательных задач на предмет соответствия возможностям детей\",IF(OR(AK65=75,AND(AK65>75,AK65<95)),\"условия соответствуют образовательным задачам\",IF(OR(AK65=50,AND(AK65<75,AK65>50)),\"требуется оптимизация условий, созданных в ДОО\",\"требуется коррекция условий, созданных в ДОО\")))","v":{"$error":"#DIV/0!"}}]
[null,null,{"$f":"C64+1","v":50},{"$f":"D14","v":0},{"$f":"E14","v":0},0,0,0,0,0,0,0,0,0,0,0,0,0,0,0,0,0,0,0,0,0,0,0,0,0,0,0,0,0,0]
[null,null,{"$f":"C66+1","v":51}]
[null,null,{"$f":"C67+1","v":52},{"$f":"D18","v":0},{"$f":"E18","v":0},0,0,0,0,0,0,0,0,0,0,0,0,0,0,0,0,0,0,0,0,0,0,0,0,0,0,0,0,0,0]
[null,null,"обогащение активного словаря; развитие связной, грамматически правильной диалогической и монологической речи"]
[null,null,{"$f":"C68+1","v":53}]
[null,null,54]
[null,null,55,{"$f":"D13","v":0},{"$f":"E13","v":0},0,0,0,0,0,0,0,0,0,0,0,0,0,0,0,0,0,0,0,0,0,0,0,0,0,0,0,0,0,0,{"v":0,"d":"0.00"}]
[null,null,"развитие речевого творчества"]
[null,null,{"$f":"C72+1","v":56}]
[null,null,"знакомство с книжной культурой, детской литературой, понимание на слух текстов различных жанров детской литературы"]
[null,null,{"$f":"C74+1","v":57}]
[null,null,{"$f":"C76+1","v":58},{"$f":"D53","v":0},{"$f":"E53","v":0},0,0,0,0,0,0,0,0,0,0,0,0,0,0,0,0,0,0,0,0,0,0,0,0,0,0,0,0,0,0]
[null,null,"развитие звуковой и интонационной культуры речи, фонематического слуха; формирование звуковой аналитико-синтетической активности как предпосылки обучения грамоте"]
[null,null,{"$f":"C77+1","v":59}]
["Художест-венно-эстетичес-кое развитие",null,"развитие предпосылок ценностно-смыслового восприятия и понимания произведений искусства (словесного, музыкального, изобразительного), мира природы; становление эстетического отношения к окружающему миру; восприятие музыки, художественной литературы, фольклора",{"$nulls":32},{"$f":"SUM(D81:AI97)/COUNTA(D2:AI2)/14","v":{"$error":"#DIV/0!"}},{"$f":"AJ80*50","v":{"$error":"#DIV/0!"}},{"$f":"IF(AK80>95,\"требуется пересмотр образовательных задач на предмет соответствия возможностям детей\",IF(OR(AK80=75,AND(AK80>75,AK80<95)),\"условия соответствуют образовательным задачам\",IF(OR(AK80=50,AND(AK80<75,AK80>50)),\"требуется оптимизация условий, созданных в ДОО\",\"требуется коррекция условий, созданных в ДОО\")))","v":{"$error":"#DIV/0!"}}]
[null,null,{"$f":"C79+1","v":60},{"$f":"D76","v":0},{"$f":"E76","v":0},0,0,0,0,0,0,0,0,0,0,0,0,0,0,0,0,0,0,0,0,0,0,0,0,0,0,0,0,0,0]
[null,null,{"$f":"C81+1","v":61}]
[null,null,62,{"$f":"D53","v":0},{"$f":"E53","v":0},0,0,0,0,0,0,0,0,0,0,0,0,0,0,0,0,0,0,0,0,0,0,0,0,0,0,0,0,0,0]
[null,null,63]
[null,null,"формирование элементарных представлений о видах искусства"]
[null,null,{"$f":"C84+1","v":64}]
[null,null,"стимулирование сопереживания персонажам художественных произведений"]
[null,null,{"$f":"C86+1","v":65},{"$f":"D67","v":0},{"$f":"E67","v":0},0,0,0,0,0,0,0,0,0,0,0,0,0,0,0,0,0,0,0,0,0,0,0,0,0,0,0,0,0,0]
[null,null,66,{"$f":"D5","v":0},{"$f":"E5","v":0},0,0,0,0,0,0,0,0,0,0,0,0,0,0,0,0,0,0,0,0,0,0,0,0,0,0,0,0,0,0]
[null,null,"реализация самостоятельной творческой деятельности детей (изобразительной, конструктивно-модельной, музыкальной и др.)"]
[null,null,{"$f":"C89+1","v":67}]
[null,null,68]
[null,null,69,{"$f":"D42","v":0},{"$f":"E42","v":0},0,0,0,0,0,0,0,0,0,0,0,0,0,0,0,0,0,0,0,0,0,0,0,0,0,0,0,0,0,0]
[null,null,70]
[null,null,71]
[null,null,72]
[null,null,73]
["Физическое развитие",null,"приобретение опыта в следующих видах деятельности детей: двигательной, в том числе связанной с выполнением упражнений, направленных на развитие таких физических качеств, как координация и гибкость; способствующих правильному формированию опорно-двигательной системы организма, развитию равновесия, координации движения, крупной и мелкой моторики обеих рук, а также с правильным, не наносящем ущерба организму, выполнением основных движений (ходьба, бег, мягкие прыжки, повороты в обе стороны)",{"$nulls":32},{"$f":"SUM(D99:AI110)/COUNTA(D2:AI2)/9","v":{"$error":"#DIV/0!"}},{"$f":"AJ98*50","v":{"$error":"#DIV/0!"}},{"$f":"IF(AK98>95,\"требуется пересмотр образовательных задач на предмет соответствия возможностям детей\",IF(OR(AK98=75,AND(AK98>75,AK98<95)),\"условия соответствуют образовательным задачам\",IF(OR(AK98=50,AND(AK98<75,AK98>50)),\"требуется оптимизация условий, созданных в ДОО\",\"требуется коррекция условий, созданных в ДОО\")))","v":{"$error":"#DIV/0!"}}]
[null,null,{"$f":"C97+1","v":74}]
[null,null,75]
[null,null,76]
[null,null,77]
[null,null,"формирование начальных представлений о некоторых видах спорта, овладение подвижными играми с правилами"]
[null,null,{"$f":"C102+1","v":78}]
[null,null,"становление целенаправленности и саморегуляции в двигательной сфере"]
[null,null,{"$f":"C104+1","v":79},{"$f":"D16","v":0},{"$f":"E16","v":0},0,0,0,0,0,0,0,0,0,0,0,0,0,0,0,0,0,0,0,0,0,0,0,0,0,0,0,0,0,0]
[null,null,80]
[null,null,"становление ценностей здорового образа жизни, овладение его элементарными нормами и правилами (в питании, двигательном режиме, закаливании, при формировании полезных привычек и др.)"]
[null,null,{"$f":"C107+1","v":81},{"$f":"D24","v":0},{"$f":"E24","v":0},0,0,0,0,0,0,0,0,0,0,0,0,0,0,0,0,0,0,0,0,0,0,0,0,0,0,0,0,0,0]
[null,null,82,{"$f":"D27","v":0},{"$f":"E27","v":0},0,0,0,0,0,0,0,0,0,0,0,0,0,0,0,0,0,0,0,0,0,0,0,0,0,0,0,0,0,0]
["Оценка успешности продвижения ребен-ка в образователь-ном пространстве (значение)",null,null,{"$f":"(SUM(D5:D34)+SUM(D36)+SUM(D38:D42)+SUM(D45:D46)+SUM(D48:D64)+SUM(D74:D76)+SUM(D67)+SUM(D70:D71)+SUM(D78:D79)+SUM(D82)+SUM(D84:D86)+SUM(D91:D92)+SUM(D94:D104)+SUM(D107))/66*50","v":{"v":0,"d":"0.00"}},{"$f":"(SUM(E5:E34)+SUM(E36)+SUM(E38:E42)+SUM(E45:E46)+SUM(E48:E64)+SUM(E74:E76)+SUM(E67)+SUM(E70:E71)+SUM(E78:E79)+SUM(E82)+SUM(E84:E86)+SUM(E91:E92)+SUM(E94:E104)+SUM(E107))/66*50","v":{"v":0,"d":"0.00"}},{"v":0,"d":"0.00"},{"v":0,"d":"0.00"},{"v":0,"d":"0.00"},{"v":0,"d":"0.00"},{"v":0,"d":"0.00"},{"v":0,"d":"0.00"},{"v":0,"d":"0.00"},{"v":0,"d":"0.00"},{"v":0,"d":"0.00"},{"v":0,"d":"0.00"},{"v":0,"d":"0.00"},{"v":0,"d":"0.00"},{"v":0,"d":"0.00"},{"v":0,"d":"0.00"},{"v":0,"d":"0.00"},{"v":0,"d":"0.00"},{"v":0,"d":"0.00"},{"v":0,"d":"0.00"},{"v":0,"d":"0.00"},{"v":0,"d":"0.00"},{"v":0,"d":"0.00"},{"v":0,"d":"0.00"},{"v":0,"d":"0.00"},{"v":0,"d":"0.00"},{"v":0,"d":"0.00"},{"v":0,"d":"0.00"},{"v":0,"d":"0.00"},{"v":0,"d":"0.00"},{"v":0,"d":"0.00"},{"v":0,"d":"0.00"},{"$f":"SUM(D4:AI110)/COUNTA(D2:AI2)/82","v":{"$error":"#DIV/0!"}},{"$f":"AJ111*50","v":{"$error":"#DIV/0!"}},{"$f":"IF(AK111>95,\"требуется пересмотр образовательных задач на предмет соответствия возможностям детей\",IF(OR(AK111=75,AND(AK111>75,AK111<95)),\"условия соответствуют образовательным задачам\",IF(OR(AK111=50,AND(AK111<75,AK111>50)),\"требуется оптимизация условий, созданных в ДОО\",\"требуется коррекция условий, созданных в ДОО\")))","v":{"$error":"#DIV/0!"}}]
["Оценка успешности продвижения ребенка в образовательном пространстве (интерпретация)",null,null,{"$f":"IF(COUNTA(D2)=0,0,IF(OR(D111=95,D111>95),\"высокий темп развития\",IF(OR(D111=75,AND(D111>75,D111<95)),\"успешное развитие\",IF(OR(D111=50,AND(D111<75,D111>50)),\"норма развития\",IF(OR(D111=30,AND(D111<59,D111>30)),\"разраб.инд.образ.маршрута и/или психол.диагн.\",\"рекомендуется комплексное психол.обследование\")))))","v":0},{"$f":"IF(COUNTA(E2)=0,0,IF(OR(E111=95,E111>95),\"высокий темп развития\",IF(OR(E111=75,AND(E111>75,E111<95)),\"успешное развитие\",IF(OR(E111=50,AND(E111<75,E111>50)),\"норма развития\",IF(OR(E111=30,AND(E111<59,E111>30)),\"разраб.инд.образ.маршрута и/или психол.диагн.\",\"рекомендуется комплексное психол.обследование\")))))","v":0},{"$f":"IF(COUNTA(F2)=0,0,IF(OR(F111=95,F111>95),\"высокий темп развития\",IF(OR(F111=75,AND(F111>75,F111<95)),\"успешное развитие\",IF(OR(F111=50,AND(F111<75,F111>50)),\"норма развития\",IF(OR(F111=30,AND(F111<59,F111>30)),\"разраб.инд.образ.маршрута и/или психол.диагн.\",\"рекомендуется комплексное психол.обследование\")))))","v":0},0,0,0,0,0,0,0,0,0,0,0,0,0,0,0,0,0,0,0,0,0,0,0,0,0,0,0,0,0,{"$error":"#DIV/0!"}]

{"sheet":"7-й год","index":7,"n_rows":114,"n_cols":38,"rows_kept":114,"merged":[[0,0,0,37],[1,0,2,2],[1,37,2,37],[3,0,16,1],[3,2,3,34],[3,37,16,37],[8,2,8,34],[11,2,11,34],[17,0,31,1],[17,2,17,34],[17,37,31,37],[25,2,25,34],[29,2,29,34],[32,0,35,1],[32,2,32,34],[32,37,35,37],[36,0,53,1],[36,2,36,34],[36,37,53,37],[45,2,45,34],[49,2,49,34],[54,0,66,1],[54,2,54,34],[54,37,66,37],[64,2,64,34],[67,0,81,1],[67,2,67,34],[67,37,81,37],[71,2,71,34],[73,2,73,34],[75,2,75,34],[78,2,78,34],[82,0,98,1],[82,2,82,34],[82,37,98,37],[87,2,87,34],[89,2,89,34],[91,2,91,34],[99,0,111,1],[99,2,99,34],[99,37,111,37],[103,2,103,34],[106,2,106,34],[108,2,108,34],[112,0,112,2],[112,37,113,37],[113,0,113,2]]}
["Карта наблюдений за детьми 7-го года жизни"]
["          Фамилии, \n               имена \n                   детей \n               группы\n\n\n\nОбразова-                   тельные \nобласти:",{"$nulls":34},"среднее","Оценка адекватности форм и методов образовательной работы (значение)","Оценка адекватности форм и методов образовательной работы"]
[{"$nulls":3},1,2,3,4,5,6,7,8,9,10,11,12,13,14,15,16,17,18,19,20,21,22,23,24,25,26,27,28,29,30,31,32]
["Социально-коммуника-тивное развитие",null,"усвоение норм и ценностей, принятых в обществе, включая моральные и нравственные ценности; развитие социального и эмоционального интеллекта, эмоциональной отзывчивости, сопереживания",{"$nulls":32},{"$f":"SUM(D4:AI32)/COUNTA(D2:AI2)/23","v":{"$error":"#DIV/0!"}},{"$f":"AJ4*50","v":{"$error":"#DIV/0!"}},{"$f":"IF(AK4>95,\"требуется пересмотр образовательных задач на предмет соответствия возможностям детей\",IF(OR(AK4=75,AND(AK4>75,AK4<95)),\"условия соответствуют образовательным задачам\",IF(OR(AK4=50,AND(AK4<75,AK4>50)),\"требуется оптимизация условий, созданных в ДОО\",\"требуется коррекция условий, созданных в ДОО\")))","v":{"$error":"#DIV/0!"}}]
[null,null,1]
[null,null,{"$f":"C5+1","v":2}]
[null,null,{"$f":"C6+1","v":3}]
[null,null,4]
[null,null,"формирование уважительного отношения и чувства принадлежности к своей семье и к сообществу детей и взрослых в Организации"]
[null,null,{"$f":"C8+1","v":5}]
[null,null,{"$f":"C10+1","v":6}]
[null,null,"формирование готовности к совместной деятельности со сверстниками, развитие общения и взаимодействия ребенка со взрослыми и сверстниками"]
[null,null,{"$f":"C11+1","v":7}]
[null,null,{"$f":"C13+1","v":8}]
[null,null,{"$f":"C14+1","v":9}]
[null,null,10]
[null,null,11]
["Социально-коммуника-тивное развитие",null,"становление самостоятельности, целенаправленности и саморегуляции собственных действий",{"$nulls":34},{"$f":"IF(AK4>95,\"требуется пересмотр образовательных задач на предмет соответствия возможностям детей\",IF(OR(AK4=75,AND(AK4>75,AK4<95)),\"условия соответствуют образовательным задачам\",IF(OR(AK4=50,AND(AK4<75,AK4>50)),\"требуется оптимизация условий, созданных в ДОО\",\"требуется коррекция условий, созданных в ДОО\")))","v":{"$error":"#DIV/0!"}}]
[null,null,{"$f":"C17+1","v":12}]
[null,null,{"$f":"C19+1","v":13}]
[null,null,{"$f":"C20+1","v":14}]
[null,null,15]
[null,null,16]
[null,null,17]
[null,null,18]
[null,null,"формирование позитивных установок к различным видам труда и творчества "]
[null,null,{"$f":"C25+1","v":19}]
[null,null,{"$f":"C27+1","v":20}]
[null,null,21]
[null,null,"формирование основ безопасного поведения в быту, социуме, природе"]
[null,null,{"$f":"C29+1","v":22}]
[null,null,{"$f":"C31+1","v":23}]
["Познава-тельное развитие",null,"развитие интересов детей, любознательности и познавательной мотивации",{"$nulls":32},{"$f":"SUM(D34:AI67)/COUNTA(D2:AI2)/29","v":{"$error":"#DIV/0!"}},{"$f":"AJ33*50","v":{"$error":"#DIV/0!"}},"см.след.страницу"]
[null,null,{"$f":"C32+1","v":24},{"$f":"D23","v":0},{"$f":"E23","v":0},0,0,0,0,0,0,0,0,0,0,0,0,0,0,0,0,0,0,0,0,0,0,0,0,0,0,0,0,0,0]
[null,null,{"$f":"C34+1","v":25}]
[null,null,26]
["Познава-тельное развитие",null,"формирование познавательных действий",{"$nulls":34},{"$f":"IF(AK33>95,\"требуется пересмотр образовательных задач на предмет соответствия возможностям детей\",IF(OR(AK33=75,AND(AK33>75,AK33<95)),\"условия соответствуют образовательным задачам\",IF(OR(AK33=50,AND(AK33<75,AK33>50)),\"требуется оптимизация условий, созданных в ДОО\",\"требуется коррекция условий, созданных в ДОО\")))","v":{"$error":"#DIV/0!"}}]
[null,null,{"$f":"C36+1","v":27}]
[null,null,28]
[null,null,29]
[null,null,30,{"$f":"D20","v":0},{"$f":"E20","v":0},0,0,0,0,0,0,0,0,0,0,0,0,0,0,0,0,0,0,0,0,0,0,0,0,0,0,0,0,0,0]
[null,null,31,{"$f":"D24","v":0},{"$f":"E24","v":0},0,0,0,0,0,0,0,0,0,0,0,0,0,0,0,0,0,0,0,0,0,0,0,0,0,0,0,0,0,0]
[null,null,32]
[null,null,33]
[null,null,34]
[null,null,"развитие воображения и творческой активности"]
[null,null,{"$f":"C45+1","v":35},{"$f":"D15","v":0},{"$f":"E15","v":0},0,0,0,0,0,0,0,0,0,0,0,0,0,0,0,0,0,0,0,0,0,0,0,0,0,0,0,0,0,0,{"v":0,"d":"0.00"}]
[null,null,36,{"$f":"D14","v":0},{"$f":"E14","v":0},0,0,0,0,0,0,0,0,0,0,0,0,0,0,0,0,0,0,0,0,0,0,0,0,0,0,0,0,0,0,{"v":0,"d":"0.00"}]
[null,null,37]
[null,null,"формирование первичных представлений о себе, других людях, становление сознания"]
[null,null,{"$f":"C49+1","v":38}]
[null,null,39]
[null,null,{"$f":"C52+1","v":40},{"$f":"D28","v":0},{"$f":"E28","v":0},0,0,0,0,0,0,0,0,0,0,0,0,0,0,0,0,0,0,0,0,0,0,0,0,0,0,0,0,0,0]
[null,null,{"$f":"C53+1","v":41}]
["Познавательное развитие",null,"формирование первичных представлений об объектах окружающего мира, о свойствах и отношениях объектов окружающего мира (форме, цвете, размере, материале, звучании, ритме, темпе, количестве, числе, части и целом, пространстве и времени, движении и покое, причинах и следствиях и др.), ",{"$nulls":34},{"$f":"IF(AK33>95,\"требуется пересмотр образовательных задач на предмет соответствия возможностям детей\",IF(OR(AK33=75,AND(AK33>75,AK33<95)),\"условия соответствуют образовательным задачам\",IF(OR(AK33=50,AND(AK33<75,AK33>50)),\"требуется оптимизация условий, созданных в ДОО\",\"требуется коррекция условий, созданных в ДОО\")))","v":{"$error":"#DIV/0!"}}]
[null,null,{"$f":"C54+1","v":42}]
[null,null,43]
[null,null,44]
[null,null,45]
[null,null,46]
[null,null,47]
[null,null,48]
[null,null,49]
[null,null,50]
[null,null,"формирование первичных представлений о малой родине и Отечестве, представлений о социокультурных ценностях нашего народа, об отечественных традициях и праздниках, о планете Земля как общем доме людей, об особенностях ее природы, многообразии стран и народов мира"]
[null,null,{"$f":"C64+1","v":51}]
[null,null,52]
["Речевое развитие",null,"владение речью как средством общения и культуры",{"$nulls":32},{"$f":"SUM(D69:AI82)/COUNTA(D2:AI2)/10","v":{"$error":"#DIV/0!"}},{"$f":"AJ68*50","v":{"$error":"#DIV/0!"}},{"$f":"IF(AK68>95,\"требуется пересмотр образовательных задач на предмет соответствия возможностям детей\",IF(OR(AK68=75,AND(AK68>75,AK68<95)),\"условия соответствуют образовательным задачам\",IF(OR(AK68=50,AND(AK68<75,AK68>50)),\"требуется оптимизация условий, созданных в ДОО\",\"требуется коррекция условий, созданных в ДОО\")))","v":{"$error":"#DIV/0!"}}]
[null,null,{"$f":"C67+1","v":53},{"$f":"D13","v":0},{"$f":"E13","v":0},0,0,0,0,0,0,0,0,0,0,0,0,0,0,0,0,0,0,0,0,0,0,0,0,0,0,0,0,0,0]
[null,null,{"$f":"C69+1","v":54},{"$f":"D35","v":0},{"$f":"E35","v":0},0,0,0,0,0,0,0,0,0,0,0,0,0,0,0,0,0,0,0,0,0,0,0,0,0,0,0,0,0,0]
[null,null,{"$f":"C70+1","v":55},{"$f":"D16","v":0},{"$f":"E16","v":0},0,0,0,0,0,0,0,0,0,0,0,0,0,0,0,0,0,0,0,0,0,0,0,0,0,0,0,0,0,0]
[null,null,"обогащение активного словаря; развитие связной, грамматически правильной диалогической и монологической речи"]
[null,null,{"$f":"C71+1","v":56}]
[null,null,"развитие речевого творчества"]
[null,null,{"$f":"C73+1","v":57}]
[null,null,"знакомство с книжной культурой, детской литературой, понимание на слух текстов различных жанров детской литературы"]
[null,null,{"$f":"C75+1","v":58}]
[null,null,{"$f":"C77+1","v":59}]
[null,null,"развитие звуковой и интонационной культуры речи, фонематического слуха; формирование звуковой аналитико-синтетической активности как предпосылки обучения грамоте"]
[null,null,{"$f":"C78+1","v":60}]
[null,null,{"$f":"C80+1","v":61}]
[null,null,{"$f":"C81+1","v":62}]
["Художест-венно-эстетичес-кое развитие",null,"развитие предпосылок ценностно-смыслового восприятия и понимания произведений искусства (словесного, музыкального, изобразительного), мира природы; становление эстетического отношения к окружающему миру; восприятие музыки, художественной литературы, фольклора",{"$nulls":32},{"$f":"SUM(D84:AI99)/COUNTA(D2:AI2)/13","v":{"$error":"#DIV/0!"}},{"$f":"AJ83*50","v":{"$error":"#DIV/0!"}},{"$f":"IF(AK83>95,\"требуется пересмотр образовательных задач на предмет соответствия возможностям детей\",IF(OR(AK83=75,AND(AK83>75,AK83<95)),\"условия соответствуют образовательным задачам\",IF(OR(AK83=50,AND(AK83<75,AK83>50)),\"требуется оптимизация условий, созданных в ДОО\",\"требуется коррекция условий, созданных в ДОО\")))","v":{"$error":"#DIV/0!"}}]
[null,null,{"$f":"C82+1","v":63}]
[null,null,{"$f":"C84+1","v":64},{"$f":"D78","v":0},{"$f":"E78","v":0},0,0,0,0,0,0,0,0,0,0,0,0,0,0,0,0,0,0,0,0,0,0,0,0,0,0,0,0,0,0]
[null,null,65]
[null,null,66]
[null,null,"формирование элементарных представлений о видах искусства"]
[null,null,{"$f":"C87+1","v":67}]
[null,null,"стимулирование сопереживания персонажам художественных произведений"]
[null,null,{"$f":"C89+1","v":68},{"$f":"D7","v":0},{"$f":"E7","v":0},0,0,0,0,0,0,0,0,0,0,0,0,0,0,0,0,0,0,0,0,0,0,0,0,0,0,0,0,0,0]
[null,null,"реализация самостоятельной творческой деятельности детей (изобразительной, конструктивно-модельной, музыкальной и др.)"]
[null,null,{"$f":"C91+1","v":69},{"$f":"D49","v":0},{"$f":"E49","v":0},0,0,0,0,0,0,0,0,0,0,0,0,0,0,0,0,0,0,0,0,0,0,0,0,0,0,0,0,0,0]
[null,null,70,{"$f":"D75","v":0},{"$f":"E75","v":0},0,0,0,0,0,0,0,0,0,0,0,0,0,0,0,0,0,0,0,0,0,0,0,0,0,0,0,0,0,0]
[null,null,71]
[null,null,72]
[null,null,73]
[null,null,74]
[null,null,75]
["Физическое развитие",null,"приобретение опыта в следующих видах деятельности детей: двигательной, в том числе связанной с выполнением упражнений, направленных на развитие таких физических качеств, как координация и гибкость; способствующих правильному формированию опорно-двигательной системы организма, развитию равновесия, координации движения, крупной и мелкой моторики обеих рук, а также с правильным, не наносящем ущерба организму, выполнением основных движений (ходьба, бег, мягкие прыжки, повороты в обе стороны)",{"$nulls":32},{"$f":"SUM(D101:AI112)/COUNTA(D2:AI2)/9","v":{"$error":"#DIV/0!"}},{"$f":"AJ100*50","v":{"$error":"#DIV/0!"}},{"$f":"IF(AK100>95,\"требуется пересмотр образовательных задач на предмет соответствия возможностям детей\",IF(OR(AK100=75,AND(AK100>75,AK100<95)),\"условия соответствуют образовательным задачам\",IF(OR(AK100=50,AND(AK100<75,AK100>50)),\"требуется оптимизация условий, созданных в ДОО\",\"требуется коррекция условий, созданных в ДОО\")))","v":{"$error":"#DIV/0!"}}]
[null,null,{"$f":"C99+1","v":76}]
[null,null,77]
[null,null,78]
[null,null,"формирование начальных представлений о некоторых видах спорта, овладение подвижными играми с правилами"]
[null,null,{"$f":"C103+1","v":79}]
[null,null,80,{"$f":"D14","v":0},{"$f":"E14","v":0},0,0,0,0,0,0,0,0,0,0,0,0,0,0,0,0,0,0,0,0,0,0,0,0,0,0,0,0,0,0]
[null,null,"становление целенаправленности и саморегуляции в двигательной сфере"]
[null,null,{"$f":"C106+1","v":81}]
[null,null,"становление ценностей здорового образа жизни, овладение его элементарными нормами и правилами (в питании, двигательном режиме, закаливании, при формировании полезных привычек и др.)"]
[null,null,{"$f":"C108+1","v":82}]
[null,null,{"$f":"C110+1","v":83}]
[null,null,84]
["Оценка успешности продвижения ребен-ка в образователь-ном пространстве (значение)",null,null,{"$f":"(SUM(D5:D32)+SUM(D35:D40)+SUM(D43:D45)+SUM(D49:D52)+SUM(D54:D67)+SUM(D86:D89)+SUM(D73:D84)+SUM(D95:D105)+SUM(D108:D112))/70*50","v":{"v":0,"d":"0.00"}},{"$f":"(SUM(E5:E32)+SUM(E35:E40)+SUM(E43:E45)+SUM(E49:E52)+SUM(E54:E67)+SUM(E86:E89)+SUM(E73:E84)+SUM(E95:E105)+SUM(E108:E112))/70*50","v":{"v":0,"d":"0.00"}},{"v":0,"d":"0.00"},{"v":0,"d":"0.00"},{"v":0,"d":"0.00"},{"v":0,"d":"0.00"},{"v":0,"d":"0.00"},{"v":0,"d":"0.00"},{"v":0,"d":"0.00"},{"v":0,"d":"0.00"},{"v":0,"d":"0.00"},{"v":0,"d":"0.00"},{"v":0,"d":"0.00"},{"v":0,"d":"0.00"},{"v":0,"d":"0.00"},{"v":0,"d":"0.00"},{"v":0,"d":"0.00"},{"v":0,"d":"0.00"},{"v":0,"d":"0.00"},{"v":0,"d":"0.00"},{"v":0,"d":"0.00"},{"v":0,"d":"0.00"},{"v":0,"d":"0.00"},{"v":0,"d":"0.00"},{"v":0,"d":"0.00"},{"v":0,"d":"0.00"},{"v":0,"d":"0.00"},{"v":0,"d":"0.00"},{"v":0,"d":"0.00"},{"v":0,"d":"0.00"},{"v":0,"d":"0.00"},{"v":0,"d":"0.00"},{"$f":"SUM(D4:AI112)/COUNTA(D2:AI2)/84","v":{"$error":"#DIV/0!"}},{"$f":"AJ113*50","v":{"$error":"#DIV/0!"}},{"$f":"IF(AK113>95,\"требуется пересмотр образовательных задач на предмет соответствия возможностям детей\",IF(OR(AK113=75,AND(AK113>75,AK113<95)),\"условия соответствуют образовательным задачам\",IF(OR(AK113=50,AND(AK113<75,AK113>50)),\"требуется оптимизация условий, созданных в ДОО\",\"требуется коррекция условий, созданных в ДОО\")))","v":{"$error":"#DIV/0!"}}]
["Оценка успешности продвижения ребенка в образовательном пространстве (интерпретация)",null,null,{"$f":"IF(COUNTA(D14)=0,0,IF(OR(D113=95,D113>95),\"высокий темп развития\",IF(OR(D113=75,AND(D113>75,D113<95)),\"успешное развитие\",IF(OR(D113=50,AND(D113<75,D113>50)),\"норма развития\",IF(OR(D113=30,AND(D113<59,D113>30)),\"разраб.инд.образ.маршрута и/или психол.диагн.\",\"рекомендуется комплексное психол.обследование\")))))","v":0},{"$f":"IF(COUNTA(E14)=0,0,IF(OR(E113=95,E113>95),\"высокий темп развития\",IF(OR(E113=75,AND(E113>75,E113<95)),\"успешное развитие\",IF(OR(E113=50,AND(E113<75,E113>50)),\"норма развития\",IF(OR(E113=30,AND(E113<59,E113>30)),\"разраб.инд.образ.маршрута и/или психол.диагн.\",\"рекомендуется комплексное психол.обследование\")))))","v":0},0,0,0,0,0,0,0,0,0,0,0,0,0,0,0,0,0,0,0,0,0,0,0,0,0,0,0,0,0,0]